Workbook

Sheet Introduction
A3: . . . . . . . . . . . . . . . . . . . . . . . . . . . . . . . . . . . . . . . . . . . . . . . . .
B5: Guidelines For Estimating
B6: Swine (26 to 121 kg) Finishing Costs
B7: ="Based On Marketing "&FIXED('Finish Input'!G36,0)&" Pigs " -> Based On Marketing 11,376 Pigs
F12: Date: | G12: April, 2023
B17: This guide is designed to provide you with planning information and a format for calculating costs of production of a swine finishing 26 to 121 kg enterprise in Manitoba. This type of operation is intended to represent the third stage of a three stage pork system. General Manitoba Agriculture recommendations are assumed in using feed and veterinary inputs. These figures provide an economic evaluation of the livestock and estimated prices required to cover all costs. Costs include labour, investment and depreciation, but do not include management costs, nor do they necessarily represent the average cost of production in Manitoba.
B28: These budgets may be adjusted by putting in your own figures. As a producer you are encouraged to calculate your own costs of production. The assumptions on which the costs are based are outlined in the supporting pages. These assumptions were arrived at using the breeding stock, management practices, and facilities seen in modern, well managed swine operations of comparable size in Manitoba. Productivity and performance assumptions are based on information collected by department specialists, feed companies and other organizations. Where individual herd productivity and performance levels differ from those listed, adjustments will be required.
B41: This tool is available as an Excel worksheet at:
B48: is also available to help
B49: determine machinery costs.
B57: Note: This budget is only a guide and is not intended as an in-depth study of the cost of production of this industry. Interpretation and use of this information is the responsibility of the user. If you need help with a budget, contact a Farm Management Specialist.

Sheet Assumptions
A2: Swine (26 to 121 kg) Finishing Cost of Production
A5: ="The following 26 to 121 kg budget is based on the assumption that all feed is purchased or home-mixed. The budget includes a land investment cost for "&'Finish Input'!G161&" acres, with "&'Finish Input'!G162&" acres rented out at $"&'Finish Input'!G163&" per acre, of the estimated "&ROUND(((('Finish-Worksheet'!D133*'Finish Input'!F140)/(40.768*2))*2.4709661),0)&" to "&ROUND(((('Finish-Worksheet'!D133*'Finish Input'!F140)/(26.362*2))*2.4709661),0)&" acres of total landbase that would be required for this size of livestock operation. This land base falls within the 2XP2O5 application rate, soil phosphorus levels permitting." -> The following 26 to 121 kg budget is based on the assumption that all feed is purchased or home-mixed. The budget includes a land investment cost for 40 acres, with 0 acres rented out at $60 per acre, of the estimated 232 to 358 acres of total landbase that would be required for this size of livestock operation. This land base falls within the 2XP2O5 application rate, soil phosphorus levels permitting.
A11: ="The budget includes an assumption that 1.5% of the market pigs are sold as lightweight pigs. It is assumed that when light weight pigs are sold, they will have a salvage value. Therefore, total marketings are reduced by "&'Finish Input'!H35&"% to compensate for the lightweight pigs." -> The budget includes an assumption that 1.5% of the market pigs are sold as lightweight pigs. It is assumed that when light weight pigs are sold, they will have a salvage value. Therefore, total marketings are reduced by 2.44% to compensate for the lightweight pigs.
A15: The budget includes an assumption that this particular operation is "all-in, all-out" by room. Space allocations for finishing pigs are in accordance with Recommended Code of Practice for the Care and Handling of Farm Animals: Pigs.
A19: The rations illustrated in this budget are examples only. Individual farm conditions should be taken into account when formulating the diets. Producers need to know the feed intakes of their animals. Please consult with a nutritionist for diet information suggestions.
A23: The Manitoba pork production industry profile is changing and this budget was specifically designed to address the need of producers who may want to analyze the cost of starting up or switching to a finishing 26 to 121 kg operation. Several companies are offering contracts with varying levels of guarantees. Producers need to accurately calculate their costs before they can properly make a decision.

Sheet Finish Summary
A1: ="Swine (26 to 121 kg) Finishing Summary - "&Introduction!G12 -> Swine (26 to 121 kg) Finishing Summary - April, 2023
E3: Purchased Feed | H3: Home-Mixed Feed
E4: $/Pig | F4: Total | H4: $/Pig | I4: Total | K4: Your
A5: A. Operating Costs | E5: Sold | F5: Cost | H5: Sold | I5: Cost | K5: Cost
A6: 1. | B6: Feed Costs:
B7: 1.01 Grower 1 | E7: ='Finish-Worksheet'!D17 -> 33.55 | F7: =ROUND(E7*'Finish Input'!$G$36,0) -> 381681 | H7: ='Finish-Worksheet'!D47 -> 24.1 | I7: =ROUND(H7*'Finish Input'!$G$36,0) -> 274173
B8: 1.02 Grower 2 | E8: ='Finish-Worksheet'!D27 -> 87.1 | F8: =ROUND(E8*'Finish Input'!$G$36,0) -> 990891 | H8: ='Finish-Worksheet'!D57 -> 68.87 | I8: =ROUND(H8*'Finish Input'!$G$36,0) -> 783498
B9: 1.03 Finisher | E9: ='Finish-Worksheet'!D37 -> 42.91 | F9: =ROUND(E9*'Finish Input'!$G$36,0) -> 488164 | H9: ='Finish-Worksheet'!D67 -> 29.61 | I9: =ROUND(H9*'Finish Input'!$G$36,0) -> 336857
A10: Total Feed Cost | E10: =SUM(E7:E9) -> 163.56 | F10: =SUM(F7:F9) -> 1860736 | H10: =SUM(H7:H9) -> 122.58 | I10: =SUM(I7:I9) -> 1394528
A12: 2. | B12: Other Operating Costs:
B13: 2.01 Weanling Cost | E13: ='Finish-Worksheet'!D78 -> 89.39 | F13: =ROUND(E13*'Finish Input'!$G$36,0) -> 1016943 | H13: =E13 -> 89.39 | I13: =F13 -> 1016943
B14: 2.02 Veterinary Medicine & Supplies | E14: ='Finish-Worksheet'!D84 -> 1.467941958 | F14: =ROUND(E14*'Finish Input'!$G$36,0) -> 16700 | H14: =E14 -> 1.467941958 | I14: =F14 -> 16700
B15: 2.03 Maintenance & Repairs | E15: ='Finish-Worksheet'!D90 -> 2.426358626 | F15: =ROUND(E15*'Finish Input'!$G$36,0) -> 27603 | H15: 2.426358626 | I15: 27603
B16: 2.04 Hydro & Propane | E16: ='Finish-Worksheet'!D96 -> 3.616938665 | F16: =ROUND(E16*'Finish Input'!$G$36,0) -> 41148 | H16: 3.616938665 | I16: 41148
B17: 2.05 Insurance | E17: ='Finish-Worksheet'!D118 -> 2.548400462 | F17: =ROUND(E17*'Finish Input'!$G$36,0) -> 28992 | H17: 2.548400462 | I17: 28992
B18: 2.06 Manure Costs | E18: ='Finish-Worksheet'!D164 -> 2.231130671 | F18: =ROUND(E18*'Finish Input'!$G$36,0) -> 25382 | H18: 2.231130671 | I18: 25382
B19: 2.07 Office Supplies | E19: ='Finish-Worksheet'!D170 -> 0.1051246446 | F19: =ROUND(E19*'Finish Input'!$G$36,0) -> 1196 | H19: 0.1051246446 | I19: 1196
B20: 2.08 Marketing & Transport | E20: ='Finish-Worksheet'!D179 -> 9.61 | F20: =ROUND(E20*'Finish Input'!$G$36,0) -> 109328 | H20: 9.61 | I20: 109328
B21: 2.09 Property Tax | E21: ='Finish-Worksheet'!D191 -> 0.8790071607 | F21: =ROUND(E21*'Finish Input'!$G$36,0) -> 10000 | H21: 0.8790071607 | I21: 10000
A22: Subtotal Operating Costs | E22: =SUM(E13:E21)+E10 -> 275.8349022 | F22: =SUM(F13:F21)+F10 -> 3138028 | H22: =SUM(H13:H21)+H10 -> 234.8549022 | I22: =SUM(I13:I21)+I10 -> 2671820
B23: 2.10 Interest on Operating Costs | E23: ='Finish-Worksheet'!D208 -> 5.230721031 | F23: =ROUND(E23*'Finish Input'!$G$36,0) -> 59507 | H23: ='Finish-Worksheet'!D225 -> 4.643808839 | I23: =ROUND(H23*'Finish Input'!$G$36,0) -> 52830
A24: Total Operating Costs | E24: =SUM(E22:E23) -> 281.0656232 | F24: =SUM(F22:F23) -> 3197535 | H24: =SUM(H22:H23) -> 239.498711 | I24: =SUM(I22:I23) -> 2724650
A26: B. Fixed Costs
A27: 3. | B27: Depreciation:
B28: 3.01 Buildings & Manure Storage | E28: ='Finish-Worksheet'!D238 -> 6.426104909 | F28: =ROUND(E28*'Finish Input'!$G$36,0) -> 73106 | H28: ='Finish-Worksheet'!D253 -> 6.568504069 | I28: =ROUND(H28*'Finish Input'!$G$36,0) -> 74726
B29: 3.02 Equipment | E29: ='Finish-Worksheet'!D245 -> 3.913043478 | F29: =ROUND(E29*'Finish Input'!$G$36,0) -> 44517 | H29: ='Finish-Worksheet'!D260 -> 4.42757911 | I29: =ROUND(H29*'Finish Input'!$G$36,0) -> 50370
A30: Total Depreciation Cost | E30: =SUM(E28:E29) -> 10.33914839 | F30: =SUM(F28:F29) -> 117623 | H30: =SUM(H28:H29) -> 10.99608318 | I30: =SUM(I28:I29) -> 125096
A32: 4. | B32: Investment:
B33: 4.01 Land | E33: ='Finish-Worksheet'!D278 -> 0.352921375 | F33: =ROUND(E33*'Finish Input'!$G$36,0) -> 4015 | H33: =E33 -> 0.352921375 | I33: =F33 -> 4015
B34: 4.02 Buildings & Manure Storage | E34: ='Finish-Worksheet'!D287 -> 2.667626314 | F34: =ROUND(E34*'Finish Input'!$G$36,0) -> 30348 | H34: ='Finish-Worksheet'!D304 -> 2.727453739 | I34: =F34 -> 30348
B35: 4.03 Equipment | E35: ='Finish-Worksheet'!D295 -> 0.6740556536 | F35: =ROUND(E35*'Finish Input'!$G$36,0) -> 7668 | H35: ='Finish-Worksheet'!D312 -> 0.7538255534 | I35: =ROUND(H35*'Finish Input'!$G$36,0) -> 8576
A36: Total Investment Cost | E36: =SUM(E33:E35) -> 3.694603343 | F36: =SUM(F33:F35) -> 42031 | H36: =SUM(H33:H35) -> 3.834200667 | I36: =SUM(I33:I35) -> 42939
A37: Total Fixed Costs | E37: =E30+E36 -> 14.03375173 | F37: =F30+F36 -> 159654 | H37: =H30+H36 -> 14.83028385 | I37: =I30+I36 -> 168035
A39: C. Labour
B40: Wages, benefits and hired manager | E40: ='Finish-Worksheet'!D318 -> 5.923805057 | F40: =ROUND(E40*'Finish Input'!$G$36,0) -> 67392 | H40: =E40 -> 5.923805057 | I40: =F40 -> 67392
A42: Total Cost of Production | E42: =E24+E37+E40 -> 301.02318 | F42: =F24+F37+SUM(F40:F40) -> 3424581 | H42: =H24+H37+H40 -> 260.2527999 | I42: =I24+I37+SUM(I40:I40) -> 2960077
A44: Profitability and Breakeven Analysis
A46: Estimated Farmgate | E46: Per Pig | F46: Total | H46: Per Pig | I46: Total
B47: Market Price ($ per 100kg) | E47: ='Finish Input'!E12 -> 202 | H47: =E47 -> 202
B48: Market weight (shrunk-kg/hog live) | E48: =('Finish Input'!I20)*(1-('Finish Input'!H35/100)) -> 118.0476 | H48: 118.0476
B49: Dressing % | E49: ='Finish Input'!I13 -> 80 | H49: 80
B50: Premium per head sold | E50: ='Finish Input'!E13 -> 2 | H50: 2
B51: Land rental per head sold | E51: =SUM(('Finish Input'!G162*'Finish Input'!G163)/'Finish Input'!G36) -> 0 | H51: 0
B52: Gross Revenue / hog | E52: =SUM(((E48*E49)*('Finish Input'!I12/100)*E47)/10000+E50)+E51 -> 211.8414138 | F52: =ROUND(E52*'Finish Input'!$G$36,0) -> 2410008 | H52: 211.8414138 | I52: =ROUND(H52*'Finish Input'!$G$36,0) -> 2410008
A54: Marginal Returns
B55: Over Operating Costs | E55: =SUM(E52-E24) -> -69.22420946 | F55: =ROUND(E55*'Finish Input'!$G$36,0) -> -787527 | H55: =SUM(E52-H24) -> -27.65729727 | I55: =ROUND(H55*'Finish Input'!$G$36,0) -> -314642
B56: Over Operating & Labour Costs | E56: =SUM(E52-E24-E40) -> -75.14801452 | F56: =ROUND(E56*'Finish Input'!$G$36,0) -> -854919 | H56: =SUM(E52-H24-H40) -> -33.58110232 | I56: =ROUND(H56*'Finish Input'!$G$36,0) -> -382034
B57: Over Total Costs (Net Profit) | E57: =SUM(E52-E42) -> -89.18176625 | F57: =ROUND(E57*'Finish Input'!$G$36,0) -> -1014574 | H57: =SUM(E52-H42) -> -48.41138617 | I57: =ROUND(H57*'Finish Input'!$G$36,0) -> -550751
A59: Operating Expense Ratio | E59: =SUM(E24/E52) -> 1.326773732 | H59: =SUM(H24/E52) -> 1.130556612
A61: Breakeven Selling Price | E61: $/100 kg | F61: $/cwt | H61: $/100 kg | I61: $/cwt
B62: Operating Costs | E62: =(E24/(('Finish Input'!$I$20)*('Finish Input'!$I$13/100)*('Finish Input'!$I$12/100)))*100 -> 263.9609534 | F62: =E62/2.2046 -> 119.731903 | H62: =(H24/(('Finish Input'!$I$20)*('Finish Input'!$I$13/100)*('Finish Input'!$I$12/100)))*100 -> 224.923658 | I62: =H62/2.2046 -> 102.024702
B63: Operating & Labour Costs | E63: =((E24+E40)/(('Finish Input'!$I$20)*('Finish Input'!$I$13/100)*('Finish Input'!$I$12/100)))*100 -> 269.5242565 | F63: =E63/2.2046 -> 122.2554007 | H63: =((H24+H40)/(('Finish Input'!$I$20)*('Finish Input'!$I$13/100)*('Finish Input'!$I$12/100)))*100 -> 230.486961 | I63: =H63/2.2046 -> 104.5481997
B64: Total Costs | E64: =(E42/(('Finish Input'!$I$20)*('Finish Input'!$I$13/100)*('Finish Input'!$I$12/100)))*100 -> 282.7039632 | F64: =E64/2.2046 -> 128.2336765 | H64: =(H42/(('Finish Input'!$I$20)*('Finish Input'!$I$13/100)*('Finish Input'!$I$12/100)))*100 -> 244.4147257 | I64: =H64/2.2046 -> 110.8657923
A66: Return On Assets (ROA) | E66: =SUM((E57+E23+E36)*'Finish Input'!$I$24)/(('Finish Input'!$H$85-'Finish Input'!H72-'Finish Input'!H64)+(((E52-E51)/2)*'Finish Input'!I28)) -> -0.3139056651 | H66: =SUM((H57+H23+H36)*'Finish Input'!$I$24)/('Finish Input'!$H$85+(((E52-E51)/2)*'Finish Input'!I28)) -> -0.1508770547
A68: Note: This budget is only a guide and is not intended to be an in-depth study of the cost of production of this industry. Interpretation and utilization of this information is the responsibility of the user. No liability for decisions based on this publication is assumed.

Sheet Risk Analysis
A1: Risk & Sensitivity Analysis (Stress Test)
A2: A. Operating Costs
B3: Feed cost | C3: ='Finish Summary'!E10 -> 163.56 | D3: ='Finish Summary'!H10 -> 122.58
B4: Weanling cost | C4: ='Finish Summary'!E13 -> 89.39 | D4: ='Finish Summary'!H13 -> 89.39
B5: Other Operating Costs | C5: =SUM('Finish Summary'!E24-'Finish Summary'!E13-'Finish Summary'!E10) -> 28.11562322 | D5: =SUM('Finish Summary'!H24-'Finish Summary'!H13-'Finish Summary'!H10) -> 27.52871103
B6: Subtotal | C6: =SUM(C3:C5) -> 281.0656232 | D6: =SUM(D3:D5) -> 239.498711
A7: B. Fixed Costs | C7: ='Finish Summary'!E37 -> 14.03375173 | D7: ='Finish Summary'!H37 -> 14.83028385
A8: C. Labour | C8: ='Finish Summary'!E40 -> 5.923805057 | D8: ='Finish Summary'!H40 -> 5.923805057
A9: Total Costs | C9: =SUM(C6:C8) -> 301.02318 | D9: =SUM(D6:D8) -> 260.2527999
A11: Estimated Farmgate
B12: Price ($ per 100kg) | C12: ='Finish Input'!E12 -> 202 | D12: ='Finish Input'!E12 -> 202
B15: Percent Market Price Change | C15: -0.1
B16: Percent Feed Cost Change | C16: 0.1
B17: Percent Weanling Cost Change | C17: 0.05
C20: Purchased Feed | D20: Home-Mixed Feed
C21: Per Pig | D21: Per Pig
B22: Market Price ($ per 100kg) | C22: =SUM(C12*(1+C15)) -> 181.8 | D22: =SUM(D12*(1+C15)) -> 181.8
B23: Feed Cost | C23: =SUM(C3+(C3*C16)) -> 179.916 | D23: =SUM(D3+(D3*C16)) -> 134.838
B24: Weanling Cost | C24: =SUM(('Finish Input'!$G$105*(1+C17))/100*'Finish Input'!$G$107*'Finish Input'!$G$106*'Finish Input'!$G$32/'Finish Input'!$G$36) -> 93.86112474 | D24: =SUM(('Finish Input'!$G$105*(1+C17))/100*'Finish Input'!$G$107*'Finish Input'!$G$106*'Finish Input'!$G$32/'Finish Input'!$G$36) -> 93.86112474
A26: ="Stress Test Scenario = Market Price "&IF(C15<0,"Down","Up")&" "&ABS(C15*100)&"%, Feed Price "&IF(C16<0,"Down","Up")&" "&ABS(C16*100)&"% and Weanling Cost "&IF(C17<0,"Down","Up")&" "&ABS(C17*100)&"%" -> Stress Test Scenario = Market Price Down 10%, Feed Price Up 10% and Weanling Cost Up 5%
B27: Operating Costs | C27: =SUM(C5+C23+C24) -> 301.892748 | D27: =SUM(D5+D23+D24) -> 256.2278358
B28: Total Costs | C28: =C7+C8+C27 -> 321.8503048 | D28: =D7+D8+D27 -> 276.9819247
B29: Gross Revenue / hog | C29: =SUM((('Finish Summary'!$E$48*'Finish Input'!$I$13)*('Finish Input'!$I$12/100)*C22)/10000+'Finish Input'!$E$13)+'Finish Summary'!$E$51 -> 190.8572724 | D29: =SUM((('Finish Summary'!$E$48*'Finish Input'!$I$13)*('Finish Input'!$I$12/100)*D22)/10000+'Finish Input'!$E$13)+'Finish Summary'!$E$51 -> 190.8572724
B30: Marginal Returns
B31: Over Operating Costs | C31: =SUM(C29-C27) -> -111.0354756 | D31: =SUM(D29-D27) -> -65.37056339
B32: Over Operating & Labour Costs | C32: =SUM(C29-C27-C8) -> -116.9592806 | D32: =SUM(D29-D27-D8) -> -71.29436844
B33: Over Total Costs (Net Profit) | C33: =SUM(C29-C28) -> -130.9930324 | D33: =SUM(D29-D28) -> -86.12465229
B34: Operating Expense Ratio | C34: =SUM(C27/C29) -> 1.581772307 | D34: =SUM(D27/D29) -> 1.342510204
B35: Return on Asset (ROA) | C35: =SUM(((C33+'Finish Summary'!$E$23+'Finish Summary'!$E$36)*'Finish Input'!$I$24)/('Finish Input'!$H$85+(((C29-'Finish Summary'!$E$51/2))*'Finish Input'!$I39))) -> -0.5334900747 | D35: =SUM(((D33+'Finish Summary'!$E$23+'Finish Summary'!$E$36)*'Finish Input'!$I$24)/('Finish Input'!$H$85+(((D29-'Finish Summary'!$E$51/2))*'Finish Input'!$I39))) -> -0.3373953349
A38: Estimated Breakeven Canadian Dollar Analysis*
B40: *Purchased Feed | C40: Est. US Futures Price (USD per cwt)
C41: =SUM($E$41-4) -> 68.83861018 | D41: =SUM($E$41-2) -> 70.83861018 | E41: ='Finish Input'!F14 -> 72.83861018 | F41: =SUM($E$41+2) -> 74.83861018 | G41: =SUM($E$41+4) -> 76.83861018
A42: Breakeven CDN Dollar ($1 Cdn = $ USD)
B43: Operating Costs | C43: =SUM(C41/(('Finish Summary'!$E$24/2.2046)+('Finish Input'!$H$13/2.2046))) -> 0.5125944659 | D43: =SUM(D41/(('Finish Summary'!$E$24/2.2046)+('Finish Input'!$H$13/2.2046))) -> 0.5274871101 | E43: =SUM(E41/(('Finish Summary'!$E$24/2.2046)+('Finish Input'!$H$13/2.2046))) -> 0.5423797544 | F43: =SUM(F41/(('Finish Summary'!$E$24/2.2046)+('Finish Input'!$H$13/2.2046))) -> 0.5572723986 | G43: =SUM(G41/(('Finish Summary'!$E$24/2.2046)+('Finish Input'!$H$13/2.2046))) -> 0.5721650429
B44: Operating & Labour Costs | C44: =SUM(C41/((('Finish Summary'!$E$24+'Finish Summary'!C40)/2.2046)+('Finish Input'!$H$13/2.2046))) -> 0.5125944659 | D44: =SUM(D41/((('Finish Summary'!$E$24+'Finish Summary'!D40)/2.2046)+('Finish Input'!$H$13/2.2046))) -> 0.5274871101 | E44: =SUM(E41/((('Finish Summary'!$E$24+'Finish Summary'!E40)/2.2046)+('Finish Input'!$H$13/2.2046))) -> 0.5317404683 | F44: =SUM(F41/((('Finish Summary'!$E$24+'Finish Summary'!F40)/2.2046)+('Finish Input'!$H$13/2.2046))) -> 0.002437493205 | G44: =SUM(G41/((('Finish Summary'!$E$24+'Finish Summary'!G40)/2.2046)+('Finish Input'!$H$13/2.2046))) -> 0.5721650429
B45: Operating, Fixed & Labour Costs | C45: =SUM(C41/(('Finish Summary'!$E$42/2.2046)+('Finish Input'!$H$13/2.2046))) -> 0.4802230014 | D45: =SUM(D41/(('Finish Summary'!$E$42/2.2046)+('Finish Input'!$H$13/2.2046))) -> 0.4941751425 | E45: =SUM(E41/(('Finish Summary'!$E$42/2.2046)+('Finish Input'!$H$13/2.2046))) -> 0.5081272836 | F45: =SUM(F41/(('Finish Summary'!$E$42/2.2046)+('Finish Input'!$H$13/2.2046))) -> 0.5220794247 | G45: =SUM(G41/(('Finish Summary'!$E$42/2.2046)+('Finish Input'!$H$13/2.2046))) -> 0.5360315658
A47: Estimated Breakeven US Futures Price Analysis*
B49: *Purchased Feed | C49: Canadian Dollar ($1 Cdn = $ USD)
C50: =SUM($E$50-0.02) -> 0.72 | D50: =SUM($E$50-0.01) -> 0.73 | E50: ='Finish Input'!E11 -> 0.74 | F50: =SUM($E$50+0.01) -> 0.75 | G50: =SUM($E$50+0.02) -> 0.76
C51: =SUM(1/C50) -> 1.388888889 | D51: =SUM(1/D50) -> 1.369863014 | E51: =SUM(1/E50) -> 1.351351351 | F51: =SUM(1/F50) -> 1.333333333 | G51: =SUM(1/G50) -> 1.315789474
A52: Breakeven Futures Price ($ USD)
B53: Operating Costs | C53: =SUM(('Finish Summary'!$E$24/2.2046)+('Finish Input'!$H$13/2.2046))/C$51 -> 96.69202972 | D53: =SUM(('Finish Summary'!$E$24/2.2046)+('Finish Input'!$H$13/2.2046))/D$51 -> 98.03497458 | E53: =SUM(('Finish Summary'!$E$24/2.2046)+('Finish Input'!$H$13/2.2046))/E$51 -> 99.37791943 | F53: =SUM(('Finish Summary'!$E$24/2.2046)+('Finish Input'!$H$13/2.2046))/F$51 -> 100.7208643 | G53: =SUM(('Finish Summary'!$E$24/2.2046)+('Finish Input'!$H$13/2.2046))/G$51 -> 102.0638091
B54: Operating & Labour Costs | C54: =SUM((('Finish Summary'!$E$24+'Finish Summary'!$E$40)/2.2046)+('Finish Input'!$H$13/2.2046))/C$51 -> 98.62668437 | D54: =SUM((('Finish Summary'!$E$24+'Finish Summary'!$E$40)/2.2046)+('Finish Input'!$H$13/2.2046))/D$51 -> 99.99649943 | E54: =SUM((('Finish Summary'!$E$24+'Finish Summary'!$E$40)/2.2046)+('Finish Input'!$H$13/2.2046))/E$51 -> 101.3663145 | F54: =SUM((('Finish Summary'!$E$24+'Finish Summary'!$E$40)/2.2046)+('Finish Input'!$H$13/2.2046))/F$51 -> 102.7361296 | G54: =SUM((('Finish Summary'!$E$24+'Finish Summary'!$E$40)/2.2046)+('Finish Input'!$H$13/2.2046))/G$51 -> 104.1059446
B55: Operating, Fixed & Labour Costs | C55: =SUM(('Finish Summary'!$E$42/2.2046)+('Finish Input'!$H$13/2.2046))/C$51 -> 103.2099653 | D55: =SUM(('Finish Summary'!$E$42/2.2046)+('Finish Input'!$H$13/2.2046))/D$51 -> 104.6434371 | E55: =SUM(('Finish Summary'!$E$42/2.2046)+('Finish Input'!$H$13/2.2046))/E$51 -> 106.0769088 | F55: =SUM(('Finish Summary'!$E$42/2.2046)+('Finish Input'!$H$13/2.2046))/F$51 -> 107.5103806 | G55: =SUM(('Finish Summary'!$E$42/2.2046)+('Finish Input'!$H$13/2.2046))/G$51 -> 108.9438523
A57: ="Breakeven Canadian Dollar = Est. US Futures / (Cost + Basis) (eg. ($"&TEXT(E41,"0.00")&" /(($"&TEXT('Finish Summary'!E42,"0.00")&" + $"&TEXT('Finish Input'!H13,"0.00")&")/2.2046)) = $"&TEXT(E45,"0.0000")&" US)" -> Breakeven Canadian Dollar = Est. US Futures / (Cost + Basis) (eg. ($72.84 /(($301.02 + $15.00)/2.2046)) = $0.5081 US)
A58: ="Breakeven Est. US Futures = (Cost + Basis) / Cdn Dollar (eg. ((($"&TEXT('Finish Summary'!E42,"0.00")&" + $"&TEXT('Finish Input'!H13,"0.00")&")/2.2046)/(1/"&TEXT(E50,"0.0000")&")) = $"&TEXT(E55,"0.00")&")" -> Breakeven Est. US Futures = (Cost + Basis) / Cdn Dollar (eg. ((($301.02 + $15.00)/2.2046)/(1/0.7400)) = $106.08)
A60: Note: This budget is only a guide and is not intended as an in depth study of the cost of production of this industry. Interpretation and utilization of this information is the responsibility of the user.

Sheet Finish Input
A2: Swine (26-121 kg) Finishing Production Cost Assumptions
A5: 1. | B5: This input table outlines the cost of production for a finishing enterprise
A6: 2. | B6: Buildings and equipment are valued at new cost.
A7: 3. | B7: Purchased or home-mixed feed is used.
A8: 4. | B8: Manure haulage is contracted out.
C10: Weanling Cost based on | F10: 87
C11: $1 Canadian Dollar | E11: 0.74 | G11: USD or $1 USD = | H11: =SUM(1/E11) -> 1.351351351 | I11: Canadian Dollar
C12: Market Price/100kg | E12: 202 | F12: or: | G12: =E12/100/2.2046 -> 0.9162659893 | H12: /lb | I12: 110 | J12: Market Index
C13: Premium/head | E13: 2 | G13: Basis ($ per 100kg) | H13: 15 | I13: 80 | J13: % Dress
C14: Estimated US Futures Price | F14: =SUM((E12+H13)/2.2046)/H11 -> 72.83861018 | G14: USD
A16: Indicators of Productivity
G17: Grower 1 | H17: Grower 2 | I17: Finisher | K17: Total
A18: Number of Pigs Purchased | G18: 12000 | H18: =G24 -> 11886 | I18: =H24 -> 11773 | K18: =G18 -> 12000
A19: Average Beginning Weight (kg) | G19: 26 | H19: =G20 -> 50 | I19: =H20 -> 100 | K19: =G19 -> 26
A20: Average Ending Weight (kg) | G20: 50 | H20: 100 | I20: 121 | K20: =I20 -> 121
A21: Percent Mortality | G21: 0.95 | H21: 0.95 | I21: 0.95 | K21: =((G18-I24)/G18)*100 -> 2.825
A22: Days on Feed | G22: 23 | H22: 65 | I22: 28 | K22: =SUM(G22:I22) -> 116
A23: Feed Conversion Ratio | G23: 1.95 | H23: 3 | I23: 3.5 | K23: =(G23*(G20-G19)+H23*(H20-H19)+I23*(I20-I19))/(I20-G19) -> 2.845263158
A24: Number of Pigs (Ending) | G24: =ROUND(G18-(G18*G21/100),0) -> 11886 | H24: =ROUND(H18-(H18*H21/100),0) -> 11773 | I24: =ROUND(I18-(I18*I21/100),0) -> 11661 | K24: =I24 -> 11661
A25: Weight Gain/Pig (kg) | G25: =G20-G19 -> 24 | H25: =H20-H19 -> 50 | I25: =I20-I19 -> 21 | K25: =SUM(G25:I25) -> 95
A26: Feed Disappearance/Pig (kg) | G26: =G23*G25 -> 46.8 | H26: =H23*H25 -> 150 | I26: =I23*I25 -> 73.5 | K26: =SUM(G26:I26) -> 270.3
A27: Average Daily Gain (kg) | G27: =(G20-G19)/G22 -> 1.043478261 | H27: =(H20-H19)/H22 -> 0.7692307692 | I27: =(I20-I19)/I22 -> 0.75 | K27: =K25/K22 -> 0.8189655172
A28: Average Number Pigs in Barn | G28: =((G18+G24)/2)/$G$39 -> 4024.627397 | H28: =((H18+H24)/2)/$G$39 -> 3986.379452 | I28: =((I18+I24)/2)/$G$39 -> 3948.468493 | K28: =SUM(G28:I28)/3 -> 3986.491781
A30: Productivity Profile | G30: Total
A32: Pigs Purchased | G32: =G18 -> 12000
A33: Pigs Died | G33: =ROUND(G32*K21/100,0) -> 339 | H33: =K21 -> 2.825 | I33: % mortality
A34: Pigs available for marketing | G34: =I24 -> 11661
A35: Less Light Weight Pig Adjustment | G35: =G34*H35/100 -> 284.5284 | H35: 2.44 | I35: %
A36: Pigs Sold at full market value | G36: =G34-G35 -> 11376.4716
A37: Washing and restocking days | G37: 7
A38: Total Days to Market | G38: =G22+H22+I22+G37 -> 123
A39: Turnover (365 / days to market) | G39: =365/G38 -> 2.967479675
A41: Feed Requirements and Costs
H42: Ration Cost per tonne
F43: FCR * | G43: kg/pig | H43: Purchased | I43: Home-Mixed
A44: Grower 1 | F44: =G23 -> 1.95 | G44: =F44*(G20-G19) -> 46.8 | H44: 679.58 | I44: ='Feed-Summary'!H27 -> 488.20025
A45: Grower 2 | F45: =H23 -> 3 | G45: =F45*(H20-H19) -> 150 | H45: 550.5 | I45: ='Feed-Summary'!H52 -> 435.256625
A46: Finisher Ration | F46: =I23 -> 3.5 | G46: =F46*(I20-I19) -> 73.5 | H46: 553.45 | I46: ='Feed-Summary'!H77 -> 381.96875
B47: * FCR = Feed Conversion Ratio (Feed:Gain)
A50: Labour
A52: Total Hours per year | G52: 48 | H52: hours/week | I52: =G52*52 -> 2496 | K52: hours/year
A53: Wage (includes hired manager) | G53: 27 | H53: /hour (weighted)
E55: Capital Investment1
C57: 4040 | D57: Pig Places
G59: /sq.ft | H59: Total | I59: /Pig Place | K59: Your Cost
A60: Buildings
B61: Barn | E61: =C57*9.2 -> 37168 | F61: ft.2 | G61: 50 | H61: =E61*G61 -> 1858400 | I61: =H61/$C$57 -> 460
B62: Office & Loading | E62: 300 | F62: ft.2 | G62: 50 | H62: =E62*G62 -> 15000 | I62: =H62/$C$57 -> 3.712871287
B63: Standby Generator | H63: 24000 | I63: =H63/$C$57 -> 5.940594059
B64: Feed Mill (building only) | H64: 45000 | I64: =H64/$C$57 -> 11.13861386
B65: Total Building Cost | H65: =SUM(H61:H64) -> 1942400 | I65: =H65/C57 -> 480.7920792
A67: Equipment
B68: Finishing Barn | H68: 470000 | I68: =H68/C57 -> 116.3366337
B69: Other | H69: =+G69 -> 0 | I69: =H69/C57 -> 0
B70: Fire Alarm System | H70: 1000 | I70: =H70/C57 -> 0.2475247525
B71: Storage Bins | H71: 36000 | I71: =H71/C57 -> 8.910891089
B72: Feed Mill (equipment only) | H72: 60000 | I72: =H72/C57 -> 14.85148515
B73: Total Equipment Cost | H73: =SUM(H68:H72) -> 567000 | I73: =H73/C57 -> 140.3465347
A74: Total Buildings and Equipment Cost | H74: =H65+H73 -> 2509400 | I74: =H74/C57 -> 621.1386139
A76: Land Value
B77: Land Investment | D77: =G161-G162 -> 40 | E77: acres @ | G77: =G164 -> 2750 | H77: =D77*G77 -> 110000 | I77: =+H77/$C$57 -> 27.22772277
B78: Land Investment | D78: =G161-D77 -> 0 | E78: acres @ | G78: =G164 -> 2750 | H78: =D78*G78 -> 0 | I78: =+H78/$C$57 -> 0
A80: Other Costs
A81: Site preparation | H81: 36000 | I81: =+H81/C57 -> 8.910891089
A82: Manure Storage | H82: 120000 | I82: =H82/C57 -> 29.7029703
A83: Total Other Costs | H83: =SUM(H81+H82) -> 156000 | I83: =SUM(I81+I82) -> 38.61386139
A85: Total Capital Investment | H85: =H74+G77+H83+H78 -> 2668150 | I85: =H85/C57 -> 660.4331683
A87: ¹ FOOTNOTE: The number of square feet in the building and the cost per square foot for buildings and equipment are approximations only. A certified building plan which is designed according to the average inventory of grower-finisher pigs should be used in order to get the exact dimensions and area for new buildings.
A89: NOTE: 1 sq.ft. = 0.0929 sq.m; 1 sq.m.= 10.764 sq.ft.; 1 ft.= 0.3048 m
A92: Fixed Costs
A94: Depreciation (straight line):
B95: Useful Life:
C96: Buildings | G96: 25 | H96: years
C97: Equipment | G97: 10 | H97: years
B98: Salvage Value (% of original cost):
C99: Buildings | G99: 10 | H99: %
C100: Equipment | G100: 10 | H100: %
A102: Investment Interest Rate | G102: 2.75 | H102: %
A104: Other Operating Costs
B105: Average market price | G105: =F10 -> 87 | H105: /cwt | I105: =G105*2.2046 -> 191.8002 | J105: /ckg
B106: Weanling Formula | G106: 1.7
B107: Purchase Weight | G107: 57.3 | H107: lbs
B108: Hauling in | G108: 0 | H108: /pig purchased
B110: Annual Veterinary Costs:
C111: Professional Services | G111: 700
C112: Medication | G112: 16000
B114: Maintenance & Repair | G114: 1.1 | H114: % of total capital investment
B116: Hydro & Propane | F116: Hydro rate | G116: 0.09324 | H116: per kwhr
F117: Hydro usage | G117: 200000 | H117: kwhr
F118: Propane rate | G118: 0.75 | H118: per litre
F119: Propane usage | G119: 30000 | H119: litres
B121: Insurance
C122: Buildings and equipment | G122: 0.78 | H122: /$100 Capital Invested
C123: Feeder hogs | G123: 0.88 | H123: /$100 Capital Invested
C124: Business Interruption | G124: 0.78 | H124: /$100 Capital Invested
C125: Business Interruption Insured value | G125: 75 | H125: per feeder
C126: Estimated Market Value of Hogs | G126: 202 | H126: /hog
B128: Manure Costs:
C129: Storage volume | G129: 7.1 | H129: litres/pig/day ³
D130: Cost / litre | G130: 0.0029 | H130: /litre
D131: Cost / gallon | G131: =G130*4.56409 -> 0.013235861 | H131: /gallon
C133: Odour control (barley straw) | G133: 0 | H133: total costs
C134: Manure Management Fee | G134: 3000 | H134: total costs
C136: Manure nutrient content | F136: nutrient | G136: fertilizer | H136: % nutrient
F137: kg/1000 | G137: value | H137: value cost
F138: litres | G138: $/lb | H138: recovery / sale
C139: Total Nitrogen | F139: 3.5 | G139: 0.77 | H139: 60
C140: Phosphate (P2O5) | F140: 0.74 | G140: 0.89 | H140: 0
C141: Potassium | F141: 1.41 | G141: 0.6 | H141: 0
E142: * kg/1000 L x 10 = lbs/1000 imp. Gallons
B143: Marketing & Transport.
E144: Trucking in | G144: 4 | H144: /pig
E145: Trucking out | G145: 4.5 | H145: /pig
E146: Council Levy | G146: 0.8 | H146: /pig
E147: Grading Charge | G147: 0.06 | H147: /pig
E148: Truck Washing | G148: 0 | H148: /pig
E149: Insurance | G149: 0.25 | H149: /pig
E150: Special Levy | G150: 0 | H150: /pig
B152: Office Supplies | G152: 0.3 | H152: /pig place
B154: Operating Loan Interest % | G154: 8.5 | H154: %
B156: Property Tax:
C157: Grower-Finisher Barn & Land | G157: 10000 | H157: /year
C158: Land | G158: 10 | H158: /acre
B160: Land Value for Grower-Finisher Operation:
C161: Number of Acres | G161: 40 | H161: acres
C162: Number of Acres rented out | G162: 0 | H162: acres
C163: Rental rate (income) | G163: 60 | H163: /acre
C164: Land Value per Acre | G164: 2750 | H164: /acre
A167: ³ FOOTNOTE: 1 cubic metre = 1000 litres
D168: 1 cubic metre = 35.314 cubic feet
D169: 1 cubic metre = 219.97 imperial gallons

Sheet Feed Input
A2: Feed Ingredient Costs
E4: Price/tonne | G4: Your Cost
B5: Wheat | E5: 370
B6: Barley | E6: 320
B7: Corn | E7: 355
B8: Soybean Meal - 47 % | E8: 665
B9: Canola Meal - 34 % | E9: 425
B10: Peas | E10: 390
B11: Grower Micro Premix | E11: 6000
B12: Canola Oil | E12: 2400
B13: Whey Powder | E13: 1364.6
B14: Herring Meal | E14: 3364.4
B15: Plasma | E15: 5720
B16: Limestone | E16: 203.95
B17: Dical (16% Ca-21% P) | E17: 1524.23
B18: Salt - 96% | E18: 261.9
B19: Phytase | E19: 14500
B20: L-Lysine HCL | E20: 2248.5
B21: L-Threonine | E21: 2815.6
B22: DL-Methionine | E22: 3850.2
B23: Oats - Steam Rolled | E23: 375
B24: Processing Costs:
B25: (Hydro, Repairs/Maintenance & Insurance) | E25: 10
B26: Percent Weight loss due to processing | E26: 1.25 | F26: %
B27: Labour Cost | E27: 10
B29: Ration Formulas | D29: Grower 1 | E29: Grower 2 | F29: Finisher
D30: Ration | E30: Ration | F30: Ration
D31: (kg) | E31: (kg) | F31: (kg)
B32: =B5 -> Wheat | D32: 475 | E32: 200 | F32: 0
B33: Barley | D33: 215 | E33: 597 | F33: 834
B34: Corn | D34: 0 | E34: 0 | F34: 0
B35: Soybean Meal - 47 % | D35: 175 | E35: 75 | F35: 0
B36: Canola Meal - 34 % | D36: 0 | E36: 100 | F36: 80
B37: Peas | D37: 100 | E37: 0 | F37: 70
B38: =B11 -> Grower Micro Premix | D38: 3 | E38: 3 | F38: 3
B39: Canola Oil | D39: 10 | E39: 8 | F39: 0
B40: Whey Powder | D40: 0 | E40: 0 | F40: 0
B41: Herring Meal | D41: 0 | E41: 0 | F41: 0
B42: Plasma | D42: 0 | E42: 0 | F42: 0
B43: Limestone | D43: 12 | E43: 10 | F43: 8
B44: Dical (16% Ca-21% P) | D44: 5 | E44: 2 | F44: 1
B45: Salt - 96% | D45: 3.5 | E45: 3.5 | F45: 3.5
B46: Phytase | D46: 0.5 | E46: 0.5 | F46: 0.5
B47: L-Lysine HCL | D47: 1 | E47: 1 | F47: 0
B48: L-Threonine | D48: 0 | E48: 0 | F48: 0
B49: DL-Methionine | D49: 0 | E49: 0 | F49: 0
B50: Oats - Steam Rolled | D50: 0 | E50: 0 | F50: 0
B51: Total | D51: =SUM(D32:D50) -> 1000 | E51: =SUM(E32:E50) -> 1000 | F51: =SUM(F32:F50) -> 1000
B54: Total Feed Ingredients per Feeder Pig per Year -- Grower-Finisher Barn
D55: =D29 -> Grower 1 | E55: =E29 -> Grower 2 | F55: =F29 -> Finisher
D56: Ration | E56: Ration | F56: Ration | G56: Total
D57: (kg/year) | E57: (kg/year) | F57: (kg/year) | G57: (kg/year)
B58: =B5 -> Wheat | D58: =('Finish-Worksheet'!$D$12*D32/1000) -> 22.23 | E58: =('Finish-Worksheet'!$D$22*E32/1000) -> 30 | F58: =('Finish-Worksheet'!$D$32*F32/1000) -> 0 | G58: =SUM(D58:F58) -> 52.23
B59: Barley | D59: =('Finish-Worksheet'!$D$12*D33/1000) -> 10.062 | E59: =('Finish-Worksheet'!$D$22*E33/1000) -> 89.55 | F59: =('Finish-Worksheet'!$D$32*F33/1000) -> 61.299 | G59: =SUM(D59:F59) -> 160.911
B60: Corn | D60: =('Finish-Worksheet'!$D$12*D34/1000) -> 0 | E60: =('Finish-Worksheet'!$D$22*E34/1000) -> 0 | F60: =('Finish-Worksheet'!$D$32*F34/1000) -> 0 | G60: 0
B61: Soybean Meal - 47 % | D61: =('Finish-Worksheet'!$D$12*D35/1000) -> 8.19 | E61: =('Finish-Worksheet'!$D$22*E35/1000) -> 11.25 | F61: =('Finish-Worksheet'!$D$32*F35/1000) -> 0 | G61: 19.44
B62: Canola Meal - 34 % | D62: =('Finish-Worksheet'!$D$12*D36/1000) -> 0 | E62: =('Finish-Worksheet'!$D$22*E36/1000) -> 15 | F62: =('Finish-Worksheet'!$D$32*F36/1000) -> 5.88 | G62: 20.88
B63: Peas | D63: =('Finish-Worksheet'!$D$12*D37/1000) -> 4.68 | E63: =('Finish-Worksheet'!$D$22*E37/1000) -> 0 | F63: =('Finish-Worksheet'!$D$32*F37/1000) -> 5.145 | G63: 9.825
B64: =B11 -> Grower Micro Premix | D64: =('Finish-Worksheet'!$D$12*D38/1000) -> 0.1404 | E64: =('Finish-Worksheet'!$D$22*E38/1000) -> 0.45 | F64: =('Finish-Worksheet'!$D$32*F38/1000) -> 0.2205 | G64: 0.8109
B65: Canola Oil | D65: =('Finish-Worksheet'!$D$12*D39/1000) -> 0.468 | E65: =('Finish-Worksheet'!$D$22*E39/1000) -> 1.2 | F65: =('Finish-Worksheet'!$D$32*F39/1000) -> 0 | G65: 1.668
B66: Whey Powder | D66: =('Finish-Worksheet'!$D$12*D40/1000) -> 0 | E66: =('Finish-Worksheet'!$D$22*E40/1000) -> 0 | F66: =('Finish-Worksheet'!$D$32*F40/1000) -> 0 | G66: 0
B67: Herring Meal | D67: =('Finish-Worksheet'!$D$12*D41/1000) -> 0 | E67: =('Finish-Worksheet'!$D$22*E41/1000) -> 0 | F67: =('Finish-Worksheet'!$D$32*F41/1000) -> 0 | G67: 0
B68: Plasma | D68: =('Finish-Worksheet'!$D$12*D42/1000) -> 0 | E68: =('Finish-Worksheet'!$D$22*E42/1000) -> 0 | F68: =('Finish-Worksheet'!$D$32*F42/1000) -> 0 | G68: 0
B69: Limestone | D69: =('Finish-Worksheet'!$D$12*D43/1000) -> 0.5616 | E69: =('Finish-Worksheet'!$D$22*E43/1000) -> 1.5 | F69: =('Finish-Worksheet'!$D$32*F43/1000) -> 0.588 | G69: 2.6496
B70: Dical (16% Ca-21% P) | D70: =('Finish-Worksheet'!$D$12*D44/1000) -> 0.234 | E70: =('Finish-Worksheet'!$D$22*E44/1000) -> 0.3 | F70: =('Finish-Worksheet'!$D$32*F44/1000) -> 0.0735 | G70: 0.6075
B71: Salt - 96% | D71: =('Finish-Worksheet'!$D$12*D45/1000) -> 0.1638 | E71: =('Finish-Worksheet'!$D$22*E45/1000) -> 0.525 | F71: =('Finish-Worksheet'!$D$32*F45/1000) -> 0.25725 | G71: 0.94605
B72: Phytase | D72: =('Finish-Worksheet'!$D$12*D46/1000) -> 0.0234 | E72: =('Finish-Worksheet'!$D$22*E46/1000) -> 0.075 | F72: =('Finish-Worksheet'!$D$32*F46/1000) -> 0.03675 | G72: 0.13515
B73: L-Lysine HCL | D73: =('Finish-Worksheet'!$D$12*D47/1000) -> 0.0468 | E73: =('Finish-Worksheet'!$D$22*E47/1000) -> 0.15 | F73: =('Finish-Worksheet'!$D$32*F47/1000) -> 0 | G73: 0.1968
B74: L-Threonine | D74: =('Finish-Worksheet'!$D$12*D48/1000) -> 0 | E74: =('Finish-Worksheet'!$D$22*E48/1000) -> 0 | F74: =('Finish-Worksheet'!$D$32*F48/1000) -> 0 | G74: 0
B75: DL-Methionine | D75: =('Finish-Worksheet'!$D$12*D49/1000) -> 0 | E75: =('Finish-Worksheet'!$D$22*E49/1000) -> 0 | F75: =('Finish-Worksheet'!$D$32*F49/1000) -> 0 | G75: 0
B76: Oats - Steam Rolled | D76: =('Finish-Worksheet'!$D$12*D50/1000) -> 0 | E76: =('Finish-Worksheet'!$D$22*E50/1000) -> 0 | F76: =('Finish-Worksheet'!$D$32*F50/1000) -> 0 | G76: 0
B77: Total Ration Used (kgs) | D77: =SUM(D58:D76) -> 46.8 | E77: =SUM(E58:E76) -> 150 | F77: =SUM(F58:F76) -> 73.5 | G77: =SUM(G58:G76) -> 270.3

Sheet Feed-Summary
A1: Home-Mixed Feed Requirement and Cost Summary
F2: Ingredient | H2: Ration
D3: Amount | F3: Price | H3: Cost
A4: Grower 1 | D4: (kg) | F4: ($ /tonne) | H4: ($ /tonne) | J4: Your Cost
A5: ='Feed Input'!B32 -> Wheat | D5: =IF('Feed Input'!D32=0,"",'Feed Input'!D32) -> 475 | F5: =IF('Feed Input'!D32=0," ",'Feed Input'!E5) -> 370 | H5: =IF('Feed Input'!D32=0," ",ROUND((D5/1000)*F5,2)) -> 175.75
A6: ='Feed Input'!B33 -> Barley | D6: =IF('Feed Input'!D33=0,"",'Feed Input'!D33) -> 215 | F6: =IF('Feed Input'!D33=0," ",'Feed Input'!E6) -> 320 | H6: =IF('Feed Input'!D33=0," ",ROUND((D6/1000)*F6,2)) -> 68.8
A7: ='Feed Input'!B34 -> Corn | D7: =IF('Feed Input'!D34=0,"",'Feed Input'!D34) ->  | F7: =IF('Feed Input'!D34=0," ",'Feed Input'!E7) ->  | H7: =IF('Feed Input'!D34=0," ",ROUND((D7/1000)*F7,2)) -> 
A8: ='Feed Input'!B35 -> Soybean Meal - 47 % | D8: =IF('Feed Input'!D35=0,"",'Feed Input'!D35) -> 175 | F8: =IF('Feed Input'!D35=0," ",'Feed Input'!E8) -> 665 | H8: =IF('Feed Input'!D35=0," ",ROUND((D8/1000)*F8,2)) -> 116.38
A9: ='Feed Input'!B36 -> Canola Meal - 34 % | D9: =IF('Feed Input'!D36=0,"",'Feed Input'!D36) ->  | F9: =IF('Feed Input'!D36=0," ",'Feed Input'!E9) ->  | H9: =IF('Feed Input'!D36=0," ",ROUND((D9/1000)*F9,2)) -> 
A10: ='Feed Input'!B37 -> Peas | D10: =IF('Feed Input'!D37=0,"",'Feed Input'!D37) -> 100 | F10: =IF('Feed Input'!D37=0," ",'Feed Input'!E10) -> 390 | H10: =IF('Feed Input'!D37=0," ",ROUND((D10/1000)*F10,2)) -> 39
A11: ='Feed Input'!B38 -> Grower Micro Premix | D11: =IF('Feed Input'!D38=0,"",'Feed Input'!D38) -> 3 | F11: =IF('Feed Input'!D38=0," ",'Feed Input'!E11) -> 6000 | H11: =IF('Feed Input'!D38=0," ",ROUND((D11/1000)*F11,2)) -> 18
A12: ='Feed Input'!B39 -> Canola Oil | D12: =IF('Feed Input'!D39=0,"",'Feed Input'!D39) -> 10 | F12: =IF('Feed Input'!D39=0," ",'Feed Input'!E12) -> 2400 | H12: =IF('Feed Input'!D39=0," ",ROUND((D12/1000)*F12,2)) -> 24
A13: ='Feed Input'!B40 -> Whey Powder | D13: =IF('Feed Input'!D40=0,"",'Feed Input'!D40) ->  | F13: =IF('Feed Input'!D40=0," ",'Feed Input'!E13) ->  | H13: =IF('Feed Input'!D40=0," ",ROUND((D13/1000)*F13,2)) -> 
A14: ='Feed Input'!B41 -> Herring Meal | D14: =IF('Feed Input'!D41=0,"",'Feed Input'!D41) ->  | F14: =IF('Feed Input'!D41=0," ",'Feed Input'!E14) ->  | H14: =IF('Feed Input'!D41=0," ",ROUND((D14/1000)*F14,2)) -> 
A15: ='Feed Input'!B42 -> Plasma | D15: =IF('Feed Input'!D42=0,"",'Feed Input'!D42) ->  | F15: =IF('Feed Input'!D42=0," ",'Feed Input'!E15) ->  | H15: =IF('Feed Input'!D42=0," ",ROUND((D15/1000)*F15,2)) -> 
A16: ='Feed Input'!B43 -> Limestone | D16: =IF('Feed Input'!D43=0,"",'Feed Input'!D43) -> 12 | F16: =IF('Feed Input'!D43=0," ",'Feed Input'!E16) -> 203.95 | H16: =IF('Feed Input'!D43=0," ",ROUND((D16/1000)*F16,2)) -> 2.45
A17: ='Feed Input'!B44 -> Dical (16% Ca-21% P) | D17: =IF('Feed Input'!D44=0,"",'Feed Input'!D44) -> 5 | F17: =IF('Feed Input'!D44=0," ",'Feed Input'!E17) -> 1524.23 | H17: =IF('Feed Input'!D44=0," ",ROUND((D17/1000)*F17,2)) -> 7.62
A18: ='Feed Input'!B45 -> Salt - 96% | D18: =IF('Feed Input'!D45=0,"",'Feed Input'!D45) -> 3.5 | F18: =IF('Feed Input'!D45=0," ",'Feed Input'!E18) -> 261.9 | H18: =IF('Feed Input'!D45=0," ",ROUND((D18/1000)*F18,2)) -> 0.92
A19: ='Feed Input'!B46 -> Phytase | D19: =IF('Feed Input'!D46=0,"",'Feed Input'!D46) -> 0.5 | F19: =IF('Feed Input'!D46=0," ",'Feed Input'!E19) -> 14500 | H19: =IF('Feed Input'!D46=0," ",ROUND((D19/1000)*F19,2)) -> 7.25
A20: ='Feed Input'!B47 -> L-Lysine HCL | D20: =IF('Feed Input'!D47=0,"",'Feed Input'!D47) -> 1 | F20: =IF('Feed Input'!D47=0," ",'Feed Input'!E20) -> 2248.5 | H20: =IF('Feed Input'!D47=0," ",ROUND((D20/1000)*F20,2)) -> 2.25
A21: ='Feed Input'!B48 -> L-Threonine | D21: =IF('Feed Input'!D48=0,"",'Feed Input'!D48) ->  | F21: =IF('Feed Input'!D48=0," ",'Feed Input'!E21) ->  | H21: =IF('Feed Input'!D48=0," ",ROUND((D21/1000)*F21,2)) -> 
A22: ='Feed Input'!B49 -> DL-Methionine | D22: =IF('Feed Input'!D49=0,"",'Feed Input'!D49) ->  | F22: =IF('Feed Input'!D49=0," ",'Feed Input'!E22) ->  | H22: =IF('Feed Input'!D49=0," ",ROUND((D22/1000)*F22,2)) -> 
A23: ='Feed Input'!B50 -> Oats - Steam Rolled | D23: =IF('Feed Input'!D50=0,"",'Feed Input'!D50) ->  | F23: =IF('Feed Input'!D50=0," ",'Feed Input'!E23) ->  | H23: =IF('Feed Input'!D50=0," ",ROUND((D23/1000)*F23,2)) -> 
A24: Total | D24: =SUM(D5:D23) -> 1000 | E24: kg | H24: =SUM(H5:H23) -> 462.42
A25: Adjusted For Weight Loss | F25: ='Feed Input'!$E$26 -> 1.25 | G25: % | H25: =H24+(F25*H24/100) -> 468.20025
A26: Plus Processing Cost | F26: ='Feed Input'!$E$25 -> 10 | H26: =IF(H25=0,0,H25+F26) -> 478.20025
A27: Plus Labour Cost | F27: ='Feed Input'!$E$27 -> 10 | H27: =H26+F27 -> 488.20025
A29: Grower 2
A30: ='Feed Input'!B5 -> Wheat | D30: =IF('Feed Input'!E32=0,"",'Feed Input'!E32) -> 200 | F30: =IF('Feed Input'!E32=0,"",'Feed Input'!E5) -> 370 | H30: =IF('Feed Input'!E32=0,"",ROUND((D30/1000)*F30,2)) -> 74
A31: ='Feed Input'!B6 -> Barley | D31: =IF('Feed Input'!E33=0,"",'Feed Input'!E33) -> 597 | F31: =IF('Feed Input'!E33=0,"",'Feed Input'!E6) -> 320 | H31: =IF('Feed Input'!E33=0,"",ROUND((D31/1000)*F31,2)) -> 191.04
A32: ='Feed Input'!B7 -> Corn | D32: =IF('Feed Input'!E34=0,"",'Feed Input'!E34) ->  | F32: =IF('Feed Input'!E34=0,"",'Feed Input'!E7) ->  | H32: =IF('Feed Input'!E34=0,"",ROUND((D32/1000)*F32,2)) -> 
A33: ='Feed Input'!B8 -> Soybean Meal - 47 % | D33: =IF('Feed Input'!E35=0,"",'Feed Input'!E35) -> 75 | F33: =IF('Feed Input'!E35=0,"",'Feed Input'!E8) -> 665 | H33: =IF('Feed Input'!E35=0,"",ROUND((D33/1000)*F33,2)) -> 49.88
A34: ='Feed Input'!B9 -> Canola Meal - 34 % | D34: =IF('Feed Input'!E36=0,"",'Feed Input'!E36) -> 100 | F34: =IF('Feed Input'!E36=0,"",'Feed Input'!E9) -> 425 | H34: =IF('Feed Input'!E36=0,"",ROUND((D34/1000)*F34,2)) -> 42.5
A35: ='Feed Input'!B10 -> Peas | D35: =IF('Feed Input'!E37=0,"",'Feed Input'!E37) ->  | F35: =IF('Feed Input'!E37=0,"",'Feed Input'!E10) ->  | H35: =IF('Feed Input'!E37=0,"",ROUND((D35/1000)*F35,2)) -> 
A36: ='Feed Input'!B11 -> Grower Micro Premix | D36: =IF('Feed Input'!E38=0,"",'Feed Input'!E38) -> 3 | F36: =IF('Feed Input'!E38=0,"",'Feed Input'!E11) -> 6000 | H36: =IF('Feed Input'!E38=0,"",ROUND((D36/1000)*F36,2)) -> 18
A37: ='Feed Input'!B12 -> Canola Oil | D37: =IF('Feed Input'!E39=0,"",'Feed Input'!E39) -> 8 | F37: =IF('Feed Input'!E39=0,"",'Feed Input'!E12) -> 2400 | H37: =IF('Feed Input'!E39=0,"",ROUND((D37/1000)*F37,2)) -> 19.2
A38: ='Feed Input'!B13 -> Whey Powder | D38: =IF('Feed Input'!E40=0,"",'Feed Input'!E40) ->  | F38: =IF('Feed Input'!E40=0,"",'Feed Input'!E13) ->  | H38: =IF('Feed Input'!E40=0,"",ROUND((D38/1000)*F38,2)) -> 
A39: ='Feed Input'!B14 -> Herring Meal | D39: =IF('Feed Input'!E41=0,"",'Feed Input'!E41) ->  | F39: =IF('Feed Input'!E41=0,"",'Feed Input'!E14) ->  | H39: =IF('Feed Input'!E41=0,"",ROUND((D39/1000)*F39,2)) -> 
A40: ='Feed Input'!B15 -> Plasma | D40: =IF('Feed Input'!E42=0,"",'Feed Input'!E42) ->  | F40: =IF('Feed Input'!E42=0,"",'Feed Input'!E15) ->  | H40: =IF('Feed Input'!E42=0,"",ROUND((D40/1000)*F40,2)) -> 
A41: ='Feed Input'!B16 -> Limestone | D41: =IF('Feed Input'!E43=0,"",'Feed Input'!E43) -> 10 | F41: =IF('Feed Input'!E43=0,"",'Feed Input'!E16) -> 203.95 | H41: =IF('Feed Input'!E43=0,"",ROUND((D41/1000)*F41,2)) -> 2.04
A42: ='Feed Input'!B17 -> Dical (16% Ca-21% P) | D42: =IF('Feed Input'!E44=0,"",'Feed Input'!E44) -> 2 | F42: =IF('Feed Input'!E44=0,"",'Feed Input'!E17) -> 1524.23 | H42: =IF('Feed Input'!E44=0,"",ROUND((D42/1000)*F42,2)) -> 3.05
A43: ='Feed Input'!B18 -> Salt - 96% | D43: =IF('Feed Input'!E45=0,"",'Feed Input'!E45) -> 3.5 | F43: =IF('Feed Input'!E45=0,"",'Feed Input'!E18) -> 261.9 | H43: =IF('Feed Input'!E45=0,"",ROUND((D43/1000)*F43,2)) -> 0.92
A44: ='Feed Input'!B19 -> Phytase | D44: =IF('Feed Input'!E46=0,"",'Feed Input'!E46) -> 0.5 | F44: =IF('Feed Input'!E46=0,"",'Feed Input'!E19) -> 14500 | H44: =IF('Feed Input'!E46=0,"",ROUND((D44/1000)*F44,2)) -> 7.25
A45: ='Feed Input'!B20 -> L-Lysine HCL | D45: =IF('Feed Input'!E47=0,"",'Feed Input'!E47) -> 1 | F45: =IF('Feed Input'!E47=0,"",'Feed Input'!E20) -> 2248.5 | H45: =IF('Feed Input'!E47=0,"",ROUND((D45/1000)*F45,2)) -> 2.25
A46: ='Feed Input'!B21 -> L-Threonine | D46: =IF('Feed Input'!E48=0,"",'Feed Input'!E48) ->  | F46: =IF('Feed Input'!E48=0,"",'Feed Input'!E21) ->  | H46: =IF('Feed Input'!E48=0,"",ROUND((D46/1000)*F46,2)) -> 
A47: ='Feed Input'!B22 -> DL-Methionine | D47: =IF('Feed Input'!E49=0,"",'Feed Input'!E49) ->  | F47: =IF('Feed Input'!E49=0,"",'Feed Input'!E22) ->  | H47: =IF('Feed Input'!E49=0,"",ROUND((D47/1000)*F47,2)) -> 
A48: ='Feed Input'!B23 -> Oats - Steam Rolled | D48: =IF('Feed Input'!E50=0,"",'Feed Input'!E50) ->  | F48: =IF('Feed Input'!E50=0,"",'Feed Input'!E23) ->  | H48: =IF('Feed Input'!E50=0,"",ROUND((D48/1000)*F48,2)) -> 
A49: Total | D49: =SUM(D30:D48) -> 1000 | E49: kg | H49: =SUM(H30:H48) -> 410.13
A50: Adjusted For Weight Loss | F50: ='Feed Input'!$E$26 -> 1.25 | G50: % | H50: =H49+(F50*H49/100) -> 415.256625
A51: Plus Processing Cost | F51: ='Feed Input'!$E$25 -> 10 | H51: =IF(H50=0,0,H50+F51) -> 425.256625
A52: Plus Labour Cost | F52: ='Feed Input'!$E$27 -> 10 | H52: =H51+F52 -> 435.256625
A54: Finisher Ration:
A55: ='Feed Input'!B32 -> Wheat | D55: =IF('Feed Input'!F32=0,"",'Feed Input'!F32) ->  | F55: =IF('Feed Input'!F32=0,"",'Feed Input'!E5) ->  | H55: =IF('Feed Input'!F32=0,"",ROUND((D55/1000)*F55,2)) -> 
A56: ='Feed Input'!B33 -> Barley | D56: =IF('Feed Input'!F33=0,"",'Feed Input'!F33) -> 834 | F56: =IF('Feed Input'!F33=0,"",'Feed Input'!E6) -> 320 | H56: =IF('Feed Input'!F33=0,"",ROUND((D56/1000)*F56,2)) -> 266.88
A57: ='Feed Input'!B34 -> Corn | D57: =IF('Feed Input'!F34=0,"",'Feed Input'!F34) ->  | F57: =IF('Feed Input'!F34=0,"",'Feed Input'!E7) ->  | H57: =IF('Feed Input'!F34=0,"",ROUND((D57/1000)*F57,2)) -> 
A58: ='Feed Input'!B35 -> Soybean Meal - 47 % | D58: =IF('Feed Input'!F35=0,"",'Feed Input'!F35) ->  | F58: =IF('Feed Input'!F35=0,"",'Feed Input'!E8) ->  | H58: =IF('Feed Input'!F35=0,"",ROUND((D58/1000)*F58,2)) -> 
A59: ='Feed Input'!B36 -> Canola Meal - 34 % | D59: =IF('Feed Input'!F36=0,"",'Feed Input'!F36) -> 80 | F59: =IF('Feed Input'!F36=0,"",'Feed Input'!E9) -> 425 | H59: =IF('Feed Input'!F36=0,"",ROUND((D59/1000)*F59,2)) -> 34
A60: ='Feed Input'!B37 -> Peas | D60: =IF('Feed Input'!F37=0,"",'Feed Input'!F37) -> 70 | F60: =IF('Feed Input'!F37=0,"",'Feed Input'!E10) -> 390 | H60: =IF('Feed Input'!F37=0,"",ROUND((D60/1000)*F60,2)) -> 27.3
A61: ='Feed Input'!B38 -> Grower Micro Premix | D61: =IF('Feed Input'!F38=0,"",'Feed Input'!F38) -> 3 | F61: =IF('Feed Input'!F38=0,"",'Feed Input'!E11) -> 6000 | H61: =IF('Feed Input'!F38=0,"",ROUND((D61/1000)*F61,2)) -> 18
A62: ='Feed Input'!B39 -> Canola Oil | D62: =IF('Feed Input'!F39=0,"",'Feed Input'!F39) ->  | F62: =IF('Feed Input'!F39=0,"",'Feed Input'!E12) ->  | H62: =IF('Feed Input'!F39=0,"",ROUND((D62/1000)*F62,2)) -> 
A63: ='Feed Input'!B40 -> Whey Powder | D63: =IF('Feed Input'!F40=0,"",'Feed Input'!F40) ->  | F63: =IF('Feed Input'!F40=0,"",'Feed Input'!E13) ->  | H63: =IF('Feed Input'!F40=0,"",ROUND((D63/1000)*F63,2)) -> 
A64: ='Feed Input'!B41 -> Herring Meal | D64: =IF('Feed Input'!F41=0,"",'Feed Input'!F41) ->  | F64: =IF('Feed Input'!F41=0,"",'Feed Input'!E14) ->  | H64: =IF('Feed Input'!F41=0,"",ROUND((D64/1000)*F64,2)) -> 
A65: ='Feed Input'!B42 -> Plasma | D65: =IF('Feed Input'!F42=0,"",'Feed Input'!F42) ->  | F65: =IF('Feed Input'!F42=0,"",'Feed Input'!E15) ->  | H65: =IF('Feed Input'!F42=0,"",ROUND((D65/1000)*F65,2)) -> 
A66: ='Feed Input'!B43 -> Limestone | D66: =IF('Feed Input'!F43=0,"",'Feed Input'!F43) -> 8 | F66: =IF('Feed Input'!F43=0,"",'Feed Input'!E16) -> 203.95 | H66: =IF('Feed Input'!F43=0,"",ROUND((D66/1000)*F66,2)) -> 1.63
A67: ='Feed Input'!B44 -> Dical (16% Ca-21% P) | D67: =IF('Feed Input'!F44=0,"",'Feed Input'!F44) -> 1 | F67: =IF('Feed Input'!F44=0,"",'Feed Input'!E17) -> 1524.23 | H67: =IF('Feed Input'!F44=0,"",ROUND((D67/1000)*F67,2)) -> 1.52
A68: ='Feed Input'!B45 -> Salt - 96% | D68: =IF('Feed Input'!F45=0,"",'Feed Input'!F45) -> 3.5 | F68: =IF('Feed Input'!F45=0,"",'Feed Input'!E18) -> 261.9 | H68: =IF('Feed Input'!F45=0,"",ROUND((D68/1000)*F68,2)) -> 0.92
A69: ='Feed Input'!B46 -> Phytase | D69: =IF('Feed Input'!F46=0,"",'Feed Input'!F46) -> 0.5 | F69: =IF('Feed Input'!F46=0,"",'Feed Input'!E19) -> 14500 | H69: =IF('Feed Input'!F46=0,"",ROUND((D69/1000)*F69,2)) -> 7.25
A70: ='Feed Input'!B47 -> L-Lysine HCL | D70: =IF('Feed Input'!F47=0,"",'Feed Input'!F47) ->  | F70: =IF('Feed Input'!F47=0,"",'Feed Input'!E20) ->  | H70: =IF('Feed Input'!F47=0,"",ROUND((D70/1000)*F70,2)) -> 
A71: ='Feed Input'!B48 -> L-Threonine | D71: =IF('Feed Input'!F48=0,"",'Feed Input'!F48) ->  | F71: =IF('Feed Input'!F48=0,"",'Feed Input'!E21) ->  | H71: =IF('Feed Input'!F48=0,"",ROUND((D71/1000)*F71,2)) -> 
A72: ='Feed Input'!B49 -> DL-Methionine | D72: =IF('Feed Input'!F49=0,"",'Feed Input'!F49) ->  | F72: =IF('Feed Input'!F49=0,"",'Feed Input'!E22) ->  | H72: =IF('Feed Input'!F49=0,"",ROUND((D72/1000)*F72,2)) -> 
A73: ='Feed Input'!B50 -> Oats - Steam Rolled | D73: =IF('Feed Input'!F50=0,"",'Feed Input'!F50) ->  | F73: =IF('Feed Input'!F50=0,"",'Feed Input'!E23) ->  | H73: =IF('Feed Input'!F50=0,"",ROUND((D73/1000)*F73,2)) -> 
A74: Total | D74: =SUM(D55:D73) -> 1000 | E74: kg | H74: =SUM(H55:H73) -> 357.5
A75: Adjusted For Weight Loss | F75: ='Feed Input'!$E$26 -> 1.25 | G75: % | H75: =H74+(F75*H74/100) -> 361.96875
A76: Plus Processing Cost | F76: ='Feed Input'!$E$25 -> 10 | H76: =IF(H75=0,0,H75+F76) -> 371.96875
A77: Plus Labour Cost | F77: ='Feed Input'!$E$27 -> 10 | H77: =H76+F77 -> 381.96875

Sheet Finish-Worksheet
A2: Swine Finishing Production Cost Worksheet
A5: A. Operating Costs | I5: Your Cost
A7: 1. Feed Requirements and Costs
B9: 1.01 | C9: Grower 1 - Purchased Feed
D10: ='Finish Input'!G25 -> 24 | F10: kg weight gain/pig
C11: x | D11: ='Finish Input'!G23 -> 1.95 | F11: feed conversion ratio
C12: = | D12: =D10*D11 -> 46.8 | F12: kg ration/pig
C13: x | D13: ='Finish Input'!H44 -> 679.58 | F13: /tonne ration
C14: ÷ | D14: 1000 | F14: kg/tonne
C15: x | D15: ='Finish Input'!$G$18 -> 12000 | F15: weanlings purchased
C16: ÷ | D16: ='Finish Input'!$G$36 -> 11376.4716 | F16: pigs sold
C17: = | D17: =ROUND(((D12*D13/1000)*D15)/D16,2) -> 33.55 | F17: /pig sold
B19: 1.02 | C19: Grower 2 - Purchased Feed
D20: ='Finish Input'!H25 -> 50 | F20: kg weight gain/pig
C21: x | D21: ='Finish Input'!H23 -> 3 | F21: feed conversion ratio
C22: = | D22: =D20*D21 -> 150 | F22: kg ration/pig
C23: x | D23: ='Finish Input'!H45 -> 550.5 | F23: /tonne ration
C24: ÷ | D24: 1000 | F24: kg/tonne
C25: x | D25: ='Finish Input'!$G$18 -> 12000 | F25: weanlings purchased
C26: ÷ | D26: ='Finish Input'!$G$36 -> 11376.4716 | F26: pigs sold
C27: = | D27: =ROUND(((D22*D23/1000)*D25)/D26,2) -> 87.1 | F27: /pig sold
B29: 1.03 | C29: Finisher Ration - Purchased Feed
D30: ='Finish Input'!I25 -> 21 | F30: kg weight gain/pig
C31: x | D31: ='Finish Input'!I23 -> 3.5 | F31: feed conversion ratio
C32: = | D32: =D30*D31 -> 73.5 | F32: kg ration/pig
C33: x | D33: ='Finish Input'!H46 -> 553.45 | F33: /tonne ration
C34: ÷ | D34: 1000 | F34: kg/tonne
C35: x | D35: ='Finish Input'!$G$18 -> 12000 | F35: weanlings purchased
C36: ÷ | D36: ='Finish Input'!$G$36 -> 11376.4716 | F36: pigs sold
C37: = | D37: =ROUND(((D32*D33/1000)*D35)/D36,2) -> 42.91 | F37: /pig sold
B39: 1.04 | C39: Grower 1 - Home Mixed Feed
D40: ='Finish Input'!G25 -> 24 | F40: kg weight gain/pig
C41: x | D41: ='Finish Input'!G23 -> 1.95 | F41: feed conversion ratio
C42: = | D42: =D40*D41 -> 46.8 | F42: kg ration/pig
C43: x | D43: ='Finish Input'!I44 -> 488.20025 | F43: /tonne ration
C44: ÷ | D44: 1000 | F44: kg/tonne
C45: x | D45: ='Finish Input'!$G$18 -> 12000 | F45: weanlings purchased
C46: ÷ | D46: ='Finish Input'!$G$36 -> 11376.4716 | F46: pigs sold
C47: = | D47: =ROUND(((D42*D43/1000)*D45)/D46,2) -> 24.1 | F47: /pig sold
B49: 1.05 | C49: Grower 2 - Home Mixed Feed
D50: ='Finish Input'!H25 -> 50 | F50: kg weight gain/pig
C51: x | D51: ='Finish Input'!H23 -> 3 | F51: feed conversion ratio
C52: = | D52: =D50*D51 -> 150 | F52: kg ration/pig
C53: x | D53: ='Finish Input'!I45 -> 435.256625 | F53: /tonne ration
C54: ÷ | D54: 1000 | F54: kg/tonne
C55: x | D55: ='Finish Input'!$G$18 -> 12000 | F55: weanlings purchased
C56: ÷ | D56: ='Finish Input'!$G$36 -> 11376.4716 | F56: pigs sold
C57: = | D57: =ROUND(((D52*D53/1000)*D55)/D56,2) -> 68.87 | F57: /pig sold
B59: 1.06 | C59: Finisher Ration - Home Mixed Feed
D60: ='Finish Input'!I25 -> 21 | F60: kg weight gain/pig
C61: x | D61: ='Finish Input'!I23 -> 3.5 | F61: feed conversion ratio
C62: = | D62: =D60*D61 -> 73.5 | F62: kg ration/pig
C63: x | D63: ='Finish Input'!I46 -> 381.96875 | F63: /tonne ration
C64: ÷ | D64: 1000 | F64: kg/tonne
C65: x | D65: ='Finish Input'!$G$18 -> 12000 | F65: weanlings purchased
C66: ÷ | D66: ='Finish Input'!$G$36 -> 11376.4716 | F66: pigs sold
C67: = | D67: =ROUND(((D62*D63/1000)*D65)/D66,2) -> 29.61 | F67: /pig sold
A69: 2. Other Operating Costs
B71: 2.01 | C71: Weanling Cost
D72: ='Finish Input'!G105 -> 87 | F72: market price
C73: ÷ | D73: 100 | F73: lbs/cwt
C74: x | D74: ='Finish Input'!G107 -> 57.3 | F74: lbs
C75: x | D75: ='Finish Input'!G106 -> 1.7 | F75: formula factor
C76: x | D76: ='Finish Input'!G32 -> 12000 | F76: weanlings purchased
C77: ÷ | D77: ='Finish Input'!$G$36 -> 11376.4716 | F77: pigs sold
C78: = | D78: =ROUND(((D72/D73*D75*D74))*D76/D77,2) -> 89.39 | F78: /pig sold
B80: 2.02 | C80: Veterinary Cost
D81: ='Finish Input'!G111 -> 700 | F81: professional services
C82: + | D82: ='Finish Input'!G112 -> 16000 | F82: medication
C83: ÷ | D83: ='Finish Input'!$G$36 -> 11376.4716 | F83: pigs sold
C84: = | D84: =(D81+D82)/D83 -> 1.467941958 | F84: /pig sold
B86: 2.03 | C86: Maintenance & Repairs
D87: ='Finish Input'!G114 -> 1.1 | F87: % of total capital investment
C88: x | D88: ='Finish Input'!H74 -> 2509400 | F88: total buildings and equipment cost
C89: ÷ | D89: ='Finish Input'!$G$36 -> 11376.4716 | F89: pigs sold
C90: = | D90: =D87/100*D88/D89 -> 2.426358626 | F90: /pig sold
B92: 2.04 | C92: Utilities
D93: ='Finish Input'!G116*'Finish Input'!G117 -> 18648 | F93: hydro
C94: + | D94: ='Finish Input'!G118*'Finish Input'!G119 -> 22500 | F94: propane
C95: ÷ | D95: ='Finish Input'!$G$36 -> 11376.4716 | F95: pigs sold
C96: = | D96: =(D93+D94)/D95 -> 3.616938665 | F96: /pig sold
B98: 2.05 | C98: Insurance
D99: ='Finish Input'!H74 -> 2509400 | F99: buildings & equipment
C100: x | D100: ='Finish Input'!G122 -> 0.78 | F100: /$100
C101: ÷ | D101: 100 | F101: /$100 capital
C102: ÷ | D102: ='Finish Input'!$G$36 -> 11376.4716 | F102: pigs sold
C103: = | D103: =D100*D99/D101/D102 -> 1.720508844 | F103: /pig sold
D105: ='Finish Input'!K28 -> 3986.491781 | F105: average number pigs in barn
C106: x | D106: ='Finish Input'!G126 -> 202 | F106: average value
C107: x | D107: ='Finish Input'!G123 -> 0.88 | F107: /$100
C108: ÷ | D108: 100 | F108: /$100 capital
C109: ÷ | D109: ='Finish Input'!$G$36 -> 11376.4716 | F109: pigs sold
C110: = | D110: =(((D105*D106)*D107)/D108)/D109 -> 0.6228985611 | F110: /pig sold
D112: ='Finish Input'!G125 -> 75 | F112: insured value
C113: x | D113: ='Finish Input'!K28 -> 3986.491781 | F113: average number in barn
C114: x | D114: ='Finish Input'!G124 -> 0.78 | F114: rate /$100
C115: ÷ | D115: ='Finish Input'!$G$36 -> 11376.4716 | F115: pigs sold
C116: = | D116: =((D112*D113)*D114/100)/D115 -> 0.2049930571 | F116: /pig sold
C118: = | D118: =D103+D110+D116 -> 2.548400462 | F118: /pig sold
B120: 2.06 | C120: Manure Costs
B121: Haulage | D121: ='Finish Input'!G129 -> 7.1 | F121: litres/pig/day
C122: x | D122: 365 | F122: days/year
C123: x | D123: ='Finish Input'!K28 -> 3986.491781 | F123: average inventory of pigs
C124: x | D124: ='Finish Input'!G130 -> 0.0029 | F124: /litre
C125: ÷ | D125: ='Finish Input'!$G$36 -> 11376.4716 | F125: pigs sold
C126: = | D126: =(D121*D122*D123*D124)/D125 -> 2.633494994 | F126: /pig sold
B128: Estimated Nutrient Value
D129: ='Finish Input'!G129 -> 7.1 | F129: litres/pig/day
C130: x | D130: 365 | F130: days/year
C131: x | D131: ='Finish Input'!K28 -> 3986.491781 | F131: average inventory of pigs
C132: ÷ | D132: 1000
C133: = | D133: =SUM((D129*D130*D131)/1000) -> 10330.99345 | F133: # of 1000 litres of manure
C134: Nitrogen
D135: ='Finish Input'!F139 -> 3.5 | F135: kg per 1000 litres
C136: x | D136: =D133 -> 10330.99345 | F136: # of 1000 litres of manure
C137: x | D137: ='Finish Input'!H139 -> 60 | F137: % nutrient value recovery
C138: ÷ | D138: 2.2045855 | F138: lbs per kg
C139: x | D139: ='Finish Input'!G139 -> 0.77 | F139: fertilizer value per lb.
C140: ÷ | D140: ='Finish Input'!$G$36 -> 11376.4716 | F140: pigs sold
C141: = | D141: =SUM((D135*D136*(D137/100)/D138)*D139)/D140 -> 0.6660664712 | F141: estimated nutrient value / pig sold
C142: Phosphate
D143: ='Finish Input'!F140 -> 0.74 | F143: kg per 1000 litres
C144: x | D144: =D133 -> 10330.99345 | F144: # of 1000 litres of manure
C145: x | D145: ='Finish Input'!H140 -> 0 | F145: % nutrient value recovery
C146: ÷ | D146: 2.2045855 | F146: lbs per kg
C147: x | D147: ='Finish Input'!G140 -> 0.89 | F147: fertilizer value per lb.
C148: ÷ | D148: ='Finish Input'!$G$36 -> 11376.4716 | F148: pigs sold
C149: = | D149: =SUM((D143*D144*(D145/100)/D146)*D147)/D148 -> 0 | F149: estimated nutrient value / pig sold
C150: Potassium
D151: ='Finish Input'!F141 -> 1.41 | F151: kg per 1000 litres
C152: x | D152: =D133 -> 10330.99345 | F152: # of 1000 litres of manure
C153: x | D153: ='Finish Input'!H141 -> 0 | F153: % nutrient value recovery
C154: ÷ | D154: 2.2045855 | F154: lbs per kg
C155: x | D155: ='Finish Input'!G141 -> 0.6 | F155: fertilizer value per lb.
C156: ÷ | D156: ='Finish Input'!$G$36 -> 11376.4716 | F156: pigs sold
C157: = | D157: =SUM((D151*D152*(D153/100)/D154)*D155)/D156 -> 0 | F157: estimated nutrient value / pig sold
B159: Odour control & Mgmt Fees
D160: ='Finish Input'!G133+'Finish Input'!G134 -> 3000 | F160: total cost
D161: ='Finish Input'!$G$36 -> 11376.4716 | F161: pigs sold
D162: =D160/D161 -> 0.2637021482 | F162: /pig sold
B164: Total | D164: =D126+D162-(D141+D149+D157) -> 2.231130671 | F164: /pig sold
B166: 2.07 | C166: Office Supplies
D167: ='Finish Input'!G152 -> 0.3 | F167: /pig place
C168: x | D168: ='Finish Input'!K28 -> 3986.491781 | F168: pig places
C169: ÷ | D169: ='Finish Input'!$G$36 -> 11376.4716 | F169: pigs sold
C170: = | D170: =D167*D168/D169 -> 0.1051246446 | F170: /pig sold
B172: 2.08 | C172: Marketing & Transportation
D173: ='Finish Input'!G144 -> 4 | F173: trucking in
C174: + | D174: ='Finish Input'!G145 -> 4.5 | F174: trucking out
C175: + | D175: ='Finish Input'!G146 -> 0.8 | F175: council levy
C176: + | D176: ='Finish Input'!G147 -> 0.06 | F176: grading charge
C177: + | D177: ='Finish Input'!G149 -> 0.25 | F177: insurance
C178: + | D178: ='Finish Input'!G150 -> 0 | F178: Special levy
C179: = | D179: =SUM(D173:D178) -> 9.61 | F179: /pig sold
B181: 2.09 | C181: Property Taxes
D182: ='Finish Input'!G157 -> 10000 | F182: taxes on barn and land
C183: ÷ | D183: ='Finish Input'!$G$36 -> 11376.4716 | F183: pigs sold
C184: = | D184: =D182/D183 -> 0.8790071607 | F184: /pig sold
D186: ='Finish Input'!G158 -> 10 | F186: taxes on land
C187: x | D187: ='Finish Input'!G162 -> 0 | F187: acres
C188: ÷ | D188: ='Finish Input'!$G$36 -> 11376.4716 | F188: pigs sold
C189: = | D189: =(D186*D187)/D188 -> 0 | F189: /pig sold
B191: Total | D191: =D184+D189 -> 0.8790071607 | F191: /pig sold
B193: 2.10 | C193: Interest on Operating Cost - Purchased Feed
D194: ='Finish Summary'!E13 -> 89.39 | F194: weaner cost
C195: x | D195: ='Finish Input'!G38 -> 123 | F195: total days to market
C196: x | D196: ='Finish Input'!$G$154 -> 8.5 | F196: % operating rate
C197: ÷ | D197: 365 | F197: days/year
C198: = | D198: =D194*D195*D196/100/D197 -> 2.560472466 | F198: /pig sold
D200: ='Finish Summary'!E22 -> 275.8349022 | F200: subtotal operating cost
C201: - | D201: =D194 -> 89.39 | F201: weaner cost
C202: ÷ | D202: 2 | F202: average
C203: x | D203: =D195 -> 123 | F203: total days to market
C204: ÷ | D204: 365 | F204: days/year
C205: x | D205: =D196 -> 8.5 | F205: % operating rate
C206: = | D206: =((((D200-D201)/D202)*D203)*D205/100)/D204 -> 2.670248565 | F206: /pig sold
C208: = | D208: =D198+D206 -> 5.230721031 | F208: /pig sold
C210: Interest on Operating Cost - Home Mixed Feed
D211: ='Finish Summary'!E13 -> 89.39 | F211: weaner cost
C212: x | D212: ='Finish Input'!G38 -> 123 | F212: total days to market
C213: x | D213: ='Finish Input'!$G$154 -> 8.5 | F213: % operating rate
C214: ÷ | D214: 365 | F214: days/year
C215: = | D215: =D211*D212*D213/100/D214 -> 2.560472466 | F215: /pig sold
D217: ='Finish Summary'!H22 -> 234.8549022 | F217: subtotal operating cost
C218: - | D218: =D211 -> 89.39 | F218: weaner cost
C219: ÷ | D219: 2 | F219: average
C220: x | D220: =D212 -> 123 | F220: total days to market
C221: ÷ | D221: 365 | F221: days/year
C222: x | D222: =D213 -> 8.5 | F222: % operating rate
C223: = | D223: =((((D217-D218)/D219)*D220)*D222/100)/D221 -> 2.083336373 | F223: /pig sold
C225: = | D225: =D215+D223 -> 4.643808839 | F225: /pig sold
A227: B. Fixed Costs
A228: 3. Depreciation
D229: Original cost - Salvage Value
D230: Useful Life
B232: 3.01 | C232: Buildings - not including feedmill
D233: ='Finish Input'!H65+'Finish Input'!H82-'Finish Input'!H64 -> 2017400 | F233: total building cost (including earthen
F234: manure storage)
C235: - | D235: ='Finish Input'!G99/100*('Finish Input'!H65-'Finish Input'!H64) -> 189740 | F235: salvage value (building only)
C236: ÷ | D236: ='Finish Input'!G96 -> 25 | F236: years useful life
... 78 more rows

Sheet Finish-O (hidden)
B3: =============================================================================
D4: GROWING AND FINISHING PIG PRODUCTION SUMMARY
B6: =============================================================================
B7: A. OPERATING COSTS | I7: TOTAL | J7: $/HOG SOLD | K7: $/PLACE
C8: 1. | D8: Feed Costs: | I8: -----------------------------------------------------------------------
D9: 1.01 | E9: Grower Ration #1 | I9: =J9*'Finish Input'!G34 -> 637273.65 | J9: =ROUND('Finish Input'!G44*SUM('Finish Input'!H44:I44)/1000,2) -> 54.65 | K9: =J9*'Finish Input'!G34/'Finish Input'!K28 -> 159.8582626
D10: 1.02 | E10: Grower Ration #2 | I10: =J10*'Finish Input'!G34 -> 1724195.46 | J10: =ROUND('Finish Input'!G45*SUM('Finish Input'!H45:I45)/1000,2) -> 147.86 | K10: =J10*'Finish Input'!G34/'Finish Input'!K28 -> 432.5094732
D11: 1.02 | E11: Finisher Ration | I11: =J11*'Finish Input'!G34 -> 801693.75 | J11: =ROUND('Finish Input'!G46*SUM('Finish Input'!H46:I46)/1000,2) -> 68.75 | K11: =J11*'Finish Input'!G34/'Finish Input'!K28 -> 201.1025719
I12: ==================================================
D13: Total Feed Cost | I13: =SUM(I9:I12) -> 3163162.86 | J13: =SUM(J9:J12) -> 271.26 | K13: =SUM(K9:K12) -> 793.4703077
C15: 2. | D15: Other Operating Costs:
D16: 2.01 | E16: Weanling Cost ** | I16: =J16*'Finish Input'!G34 -> 687600 | J16: ='Finish Input'!G107*'Finish Input'!G32/'Finish Input'!G34 -> 58.96578338 | K16: =J16*'Finish Input'!G34/'Finish Input'!K28 -> 172.4824828
D17: 2.02 | E17: Veterinary Cost | I17: =J17*'Finish Input'!G34 -> 191999997.5 | J17: =ROUND('Finish Input'!G112*'Finish Input'!G18/'Finish Input'!G34,2) -> 16465.14 | K17: =J17*'Finish Input'!G34/'Finish Input'!K28 -> 48162.64728
D18: 2.03 | E18: Maintenance & Repairs | I18: =J18*'Finish Input'!G34 -> 27636.57 | J18: =ROUND('Finish Input'!G114*'Finish Input'!H74/'Finish Input'!G34/100,2) -> 2.37 | K18: =J18*'Finish Input'!G34/'Finish Input'!K28 -> 6.932554115
D19: B7 | E19: Hydro (Heat) | I19: =J19*'Finish Input'!G34 ->  | J19: =ROUND('Finish Input'!#REF!*'Finish Input'!#REF!*'Finish Input'!K28/'Finish Input'!G34,2) ->  | K19: =J19*'Finish Input'!G34/'Finish Input'!K28 -> 
D20: 2.05 | E20: Insurance | I20: =J20*'Finish Input'!G34 -> 20062.85363 | J20: ='Finish-Worksheet'!D103 -> 1.720508844 | K20: =J20*'Finish Input'!G34/'Finish Input'!K28 -> 5.032709142
D21: 2.06 | E21: Manure Haulage | I21: =J21*'Finish Input'!G34 -> 30668.43 | J21: =ROUND('Finish-Worksheet'!D126,2) -> 2.63 | K21: =J21*'Finish Input'!G34/'Finish Input'!K28 -> 7.693087478
D22: 2.07 | E22: Office Supplies | I22: =J22*'Finish Input'!G34 -> 1166.1 | J22: =ROUND('Finish Input'!G152*'Finish Input'!K28/'Finish Input'!G34,2) -> 0.1 | K22: =J22*'Finish Input'!G34/'Finish Input'!K28 -> 0.2925128319
D23: 2.08 | E23: Marketing & Transportation | I23: =J23*'Finish Input'!G34 -> 52474.5 | J23: =ROUND('Finish Input'!G145,2) -> 4.5 | K23: =J23*'Finish Input'!G34/'Finish Input'!K28 -> 13.16307743
D24: 2.09 | E24: Property Taxes | I24: ='Finish Input'!#REF! ->  | J24: =I24/'Finish Input'!G34 ->  | K24: =J24*'Finish Input'!G34/'Finish Input'!K28 -> 
I25: ================================================
D26: Subtotal Operating Costs | I26: =J26*'Finish Input'!G34 ->  | J26: =J13+SUM(J16:J25) ->  | K26: =J26*'Finish Input'!G34/'Finish Input'!K28 -> 
D27: 2.10 | E27: Interest on Operating Cost | I27: =J27*'Finish Input'!G34 ->  | J27: =ROUND((J16*'Finish Input'!G154/100*'Finish Input'!K22/365)+((J26-J16)*'Finish Input'!G154/100*'Finish Input'!K22/365),2) ->  | K27: =J27*'Finish Input'!G34/'Finish Input'!K28 -> 
I28: ================================================
C29: TOTAL OPERATING COSTS | I29: =J29*'Finish Input'!G34 ->  | J29: =J26+J27 ->  | K29: =J29*'Finish Input'!G34/'Finish Input'!K28 -> 
B31: B. FIXED COSTS
C32: 3. | D32: Depreciation:
D33: 3.01 | E33: Buildings and Manure Storage | I33: =J33*'Finish Input'!G34 -> 74934.80935 | J33: ='Finish-Worksheet'!D238 -> 6.426104909 | K33: =J33*'Finish Input'!G34/'Finish Input'!K28 -> 18.79718145
D34: 3.02 | E34: Equipment | I34: =J34*'Finish Input'!G34 -> 51075.18 | J34: =ROUND(('Finish Input'!H73-('Finish Input'!G100/100*'Finish Input'!H73))/'Finish Input'!G97/'Finish Input'!G34,2) -> 4.38 | K34: =J34*'Finish Input'!G34/'Finish Input'!K28 -> 12.81206204
I35: =============================================
D36: Total Depreciation Cost | I36: =J36*'Finish Input'!G34 -> 126009.9893 | J36: =SUM(J32:J35) -> 10.80610491 | K36: =J36*'Finish Input'!G34/'Finish Input'!K28 -> 31.60924348
C38: 4. | D38: Investment:
D39: 4.01 | E39: Buildings and Manure Storage | I39: =J39*'Finish Input'!G34 -> 31107.19045 | J39: ='Finish-Worksheet'!D287 -> 2.667626314 | K39: =J39*'Finish Input'!G34/'Finish Input'!K28 -> 7.803149274
D40: 4.02 | E40: Equipment | I40: =J40*'Finish Input'!G34 -> 8629.14 | J40: =ROUND(('Finish Input'!H73+('Finish Input'!G100/100*'Finish Input'!H73))/2*'Finish Input'!G102/100/'Finish Input'!G34,2) -> 0.74 | K40: =J40*'Finish Input'!G34/'Finish Input'!K28 -> 2.164594956
I41: ===========================================
D42: Total Investment Cost | I42: =J42*'Finish Input'!G34 -> 39736.33045 | J42: =SUM(J38:J41) -> 3.407626314 | K42: =J42*'Finish Input'!G34/'Finish Input'!K28 -> 9.96774423
I43: ============================================
C44: TOTAL FIXED COSTS | I44: =J44*'Finish Input'!G34 -> 165746.3198 | J44: =J36+J42 -> 14.21373122 | K44: =J44*'Finish Input'!G34/'Finish Input'!K28 -> 41.57698771
B46: C. LABOUR
D47: ='Finish Input'!G52 -> 48 | E47: hours/wk. @ | G47: ='Finish Input'!G53 -> 27 | H47: /hour | I47: =J47*'Finish Input'!G34 -> 67400.58 | J47: =ROUND('Finish Input'!I52*'Finish Input'!G53/'Finish Input'!G34,2) -> 5.78 | K47: =J47*'Finish Input'!G34/'Finish Input'!K28 -> 16.90724168
I48: ===============================================
C49: TOTAL COST OF PRODUCTION | I49: =J49*'Finish Input'!G34 ->  | J49: =J29+J44+J47 ->  | K49: =J49*'Finish Input'!G34/'Finish Input'!K28 -> 
C51: BREAK-EVEN PRICE (carcass) | H51: $/100 kg | I51: $/CWT
H52: ---------------------- | I52: -----------------------
C53: Operating Cost | H53: =J29/('Finish Input'!I20*'Finish Input'!I13*'Finish Input'!I12)*1000000 ->  | I53: =H53/2.2046 -> 
C54: Operating & Labour Cost | H54: =H53+J47/('Finish Input'!I20*'Finish Input'!I13*'Finish Input'!I12)*1000000 ->  | I54: =H54/2.2046 -> 
C55: Operating, Labour & Fixed Cost | H55: =H54+J44/('Finish Input'!I20*'Finish Input'!I13*'Finish Input'!I12)*1000000 ->  | I55: =H55/2.2046 -> 
C57: Break-even Price = Cost per Hog Sold / (Slaughter Wt. X Dressing % X Index)
C59: ** Footnote on Weanling Cost: This is not the price paid for the weanling. Because
C60: this figure is expressed on a "per hog sold" basis, it includes death loss.

Sheet Weaner-O (hidden)
B3: =============================================================================
C4: WEANER PIG PRODUCTION COST SUMMARY
B6: =============================================================================
B7: A. | C7: OPERATING COSTS | H7: TOTAL | I7: $/HOG SOLD | J7: $/SOW/YR
C8: 1. | D8: Feed Costs: | H8: ------------------------------------------------------------------------
D9: A1 | E9: Sow Lactation Ration | H9: =ROUND(#REF!*#REF!*#REF!*#REF!/1000*#REF!,2) ->  | I9: =ROUND(J9/'Finish Input'!$H$34,2) ->  | J9: =ROUND(#REF!*#REF!*#REF!*#REF!/1000,2) -> 
D10: 1.02 | E10: Sow Gestation Ration | H10: =ROUND((365-#REF!*#REF!)*#REF!*#REF!/1000*#REF!,2) ->  | I10: =ROUND(J10/'Finish Input'!$H$34,2) ->  | J10: =ROUND((365-#REF!*#REF!)*#REF!*#REF!/1000,2) -> 
D11: 1.03 | E11: Boar Ration | H11: =ROUND(365*#REF!*#REF!/1000*#REF!/#REF!*#REF!,2) ->  | I11: =ROUND(J11/'Finish Input'!$H$34,2) ->  | J11: =ROUND(365*#REF!*#REF!/1000*#REF!/#REF!,2) -> 
D12: 1.04 | E12: Creep Feed | H12: =ROUND(#REF!*#REF!/1000*#REF!*#REF!,2) ->  | I12: =ROUND(J12/'Finish Input'!$H$34,2) ->  | J12: =ROUND(#REF!*#REF!/1000*#REF!,2) -> 
D13: 1.05 | E13: Starter Ration #1 | H13: =ROUND(#REF!*#REF!/1000*#REF!*#REF!,2) ->  | I13: =ROUND(J13/'Finish Input'!$H$34,2) ->  | J13: =ROUND(#REF!*#REF!/1000*#REF!,2) -> 
D14: 1.05 | E14: Starter Ration #2 | H14: =ROUND(#REF!*#REF!/1000*#REF!*#REF!,2) ->  | I14: =ROUND(J14/'Finish Input'!$H$34,2) ->  | J14: =ROUND(#REF!*#REF!/1000*#REF!,2) -> 
H15: ====================================
D16: Total Feed Cost | H16: =J16*#REF! ->  | I16: =ROUND(J16/'Finish Input'!$H$34,2) ->  | J16: =SUM(J8:J15) -> 
C18: 2. | D18: Other Operating Costs:
D19: A7 | E19: Vet. Medicine & Supplies:
E20: Professional Services | H20: =J20*#REF! ->  | I20: =ROUND(J20/'Finish Input'!$H$34,2) ->  | J20: =ROUND(#REF!,2) -> 
E21: Medication | H21: =J21*#REF! ->  | I21: =ROUND(J21/'Finish Input'!$H$34,2) ->  | J21: =ROUND(#REF!,2) -> 
D22: A8 | E22: Maintenance & Repairs | H22: =J22*#REF! ->  | I22: =ROUND(J22/'Finish Input'!$H$34,2) ->  | J22: =ROUND(#REF!*#REF!/100,2) -> 
D23: A9 | E23: Hydro (Heat) | H23: =J23*#REF! ->  | I23: =ROUND(J23/'Finish Input'!$H$34,2) ->  | J23: =ROUND(#REF!*#REF!,2) -> 
D24: 2.04 | E24: Insurance | H24: =(+#REF!+#REF!)*#REF!/100 ->  | I24: =ROUND(J24/'Finish Input'!$H$34,2) ->  | J24: =H24/#REF! -> 
D25: 2.05 | E25: Manure Haulage | H25: =J25*#REF! ->  | I25: =ROUND(J25/'Finish Input'!$H$34,2) ->  | J25: =ROUND(#REF!/1000*#REF!*365,2) -> 
D26: 2.06 | E26: Office Supplies | H26: =J26*#REF! ->  | I26: =ROUND(J26/'Finish Input'!$H$34,2) ->  | J26: =ROUND((500+(2*#REF!))/#REF!,2) -> 
D27: 2.07 | E27: Marketing & Transportation | H27: =J27*#REF! ->  | I27: =ROUND(J27/'Finish Input'!$H$34,2) ->  | J27: =ROUND(#REF!*#REF!,2) -> 
D28: 2.08 | E28: Sow Replacement | H28: =J28*#REF! ->  | I28: =ROUND(J28/'Finish Input'!$H$34,2) ->  | J28: =ROUND(#REF!/100*(#REF!-(#REF!*#REF!/100)),2) -> 
D29: 2.09 | E29: Boar Replacement | H29: =J29*#REF! ->  | I29: =ROUND(J29/'Finish Input'!$H$34,2) ->  | J29: =ROUND(#REF!/100*#REF!*(#REF!-(#REF!*#REF!/100))/#REF!,2) -> 
D30: 2.09 | E30: Property Taxes | H30: =#REF! ->  | I30: =ROUND(J30/'Finish Input'!$H$34,2) ->  | J30: =H30/#REF! -> 
H31: ====================================
E32: Subtotal Operating Costs | H32: =SUM(H15:H31) ->  | I32: =ROUND(J32/'Finish Input'!$H$34,2) ->  | J32: =H32/#REF! -> 
D33: 2.10 | E33: Interest on Operating Cost | H33: =J33*#REF! ->  | I33: =#REF! ->  | J33: =I33*'Finish Input'!H34 -> 
H34: ====================================
C35: TOTAL OPERATING COSTS | H35: =J35*#REF! ->  | I35: =ROUND(J35/'Finish Input'!$H$34,2) ->  | J35: =SUM(J32:J33) -> 
B37: B. | C37: FIXED COSTS
C38: 3. | D38: Depreciation:
D39: 3.01 | E39: Buildings and Manure Storage | H39: =J39*#REF! ->  | I39: =ROUND(J39/#REF!,2) ->  | J39: =#REF! -> 
D40: 3.02 | E40: Equipment | H40: =J40*#REF! ->  | I40: =ROUND(J40/#REF!,2) ->  | J40: =ROUND((#REF!-(#REF!/100*#REF!))/#REF!,2) -> 
H41: ====================================
D42: Total Depreciation Cost | H42: =J42*#REF! ->  | I42: =ROUND(J42/#REF!,2) ->  | J42: =SUM(J38:J41) -> 
C44: 4. | D44: Investment:
D45: 4.01 | E45: Buildings and Manure Storage | H45: =J45*#REF! ->  | I45: =ROUND(J45/#REF!,2) ->  | J45: =#REF! -> 
D46: 4.02 | E46: Equipment | H46: =J46*#REF! ->  | I46: =ROUND(J46/#REF!,2) ->  | J46: =ROUND((#REF!+(#REF!/100*#REF!))/2*#REF!/100,2) -> 
D47: 4.03 | E47: Breeding Herd | H47: =J47*#REF! ->  | I47: =ROUND(J47/#REF!,2) ->  | J47: =ROUND(#REF!*#REF!/100,2) -> 
H48: ====================================
D49: Total Investment Cost | H49: =J49*#REF! ->  | I49: =ROUND(J49/#REF!,2) ->  | J49: =SUM(J44:J48) -> 
H50: ====================================
C51: TOTAL FIXED COSTS | H51: =J51*#REF! ->  | I51: =ROUND(J51/#REF!,2) ->  | J51: =J42+J49 -> 
B53: C. | C53: LABOUR
D54: =#REF! ->  | E54: hours/wk. | H54: =J54*#REF! ->  | I54: =ROUND(J54/#REF!,2) ->  | J54: =ROUND(#REF!*#REF!*52/#REF!,2) -> 
H55: ====================================
C56: TOTAL COST OF PRODUCTION | H56: =J56*#REF! ->  | I56: =ROUND(J56/#REF!,2) ->  | J56: =J35+J51+J54 -> 
B58: =============================================================================
F59: Revenue per pig sold: | J59: ='Finish Input'!G107 -> 57.3
F61: Net of Operating Cost | J61: =IF(J59=0,0,J59-I35) -> 
F62: Net of Operating & Labour Cost | J62: =IF(J59=0,0,J61-I54) -> 
F63: Net of Operating, Labour & Fixed Cost | J63: =IF(J59=0,0,J62-I51) -> 

Sheet Ingredient-Summary
A2: Summary of Purchased Feeds Used
C3: ='Finish Input'!G34 -> 11661 | D3: Pigs available for marketing (includes lightweights)
E5: Total per | F5: Total | G5: Total | H5: Total per
E6: Pig Mkt | F6: per Year | G6: per Month | H6: Pig Mkt
E7: (kgs) | F7: (tonnes) | G7: (tonnes) | H7: (lbs)
B8: ='Finish Input'!A44 -> Grower 1 | E8: ='Finish Input'!G44 -> 46.8 | F8: =(E8*$C$3)/1000 -> 545.7348 | G8: =F8/12 -> 45.4779 | H8: =E8*2.2046 -> 103.17528
B9: ='Finish Input'!A45 -> Grower 2 | E9: ='Finish Input'!G45 -> 150 | F9: =(E9*$C$3)/1000 -> 1749.15 | G9: =F9/12 -> 145.7625 | H9: =E9*2.2046 -> 330.69
B10: ='Finish Input'!A46 -> Finisher Ration | E10: ='Finish Input'!G46 -> 73.5 | F10: =(E10*$C$3)/1000 -> 857.0835 | G10: =F10/12 -> 71.423625 | H10: =E10*2.2046 -> 162.0381
B11: Total | E11: =SUM(E8:E10) -> 270.3 | F11: =SUM(F8:F10) -> 3151.9683 | G11: =SUM(G8:G10) -> 262.664025 | H11: =SUM(H8:H10) -> 595.90338
B13: Summary of Home-Mixed Feed Ingredients Used
E14: Total | F14: Total | G14: Total | H14: Total
E15: per Pig | F15: per Year | G15: per Month | H15: per Pig
E16: (kgs) | F16: (tonnes) | G16: (tonnes) | H16: (lbs)
B17: ='Feed Input'!B5 -> Wheat | E17: ='Feed Input'!G58 -> 52.23 | F17: =(E17*$C$3)/1000 -> 609.05403 | G17: =F17/12 -> 50.7545025 | H17: =E17*2.2046 -> 115.146258
B18: ='Feed Input'!B6 -> Barley | E18: ='Feed Input'!G59 -> 160.911 | F18: 1876.383171 | G18: =F18/12 -> 156.3652643 | H18: =E18*2.2046 -> 354.7443906
B19: ='Feed Input'!B7 -> Corn | E19: ='Feed Input'!G60 -> 0 | F19: 0 | G19: 0 | H19: 0
B20: ='Feed Input'!B8 -> Soybean Meal - 47 % | E20: ='Feed Input'!G61 -> 19.44 | F20: 226.68984 | G20: 18.89082 | H20: 42.857424
B21: ='Feed Input'!B9 -> Canola Meal - 34 % | E21: ='Feed Input'!G62 -> 20.88 | F21: 243.48168 | G21: 20.29014 | H21: 46.032048
B22: ='Feed Input'!B10 -> Peas | E22: ='Feed Input'!G63 -> 9.825 | F22: 114.569325 | G22: 9.54744375 | H22: 21.660195
B23: ='Feed Input'!B11 -> Grower Micro Premix | E23: ='Feed Input'!G64 -> 0.8109 | F23: 9.4559049 | G23: 0.787992075 | H23: 1.78771014
B24: ='Feed Input'!B12 -> Canola Oil | E24: ='Feed Input'!G65 -> 1.668 | F24: 19.450548 | G24: 1.620879 | H24: 3.6772728
B25: ='Feed Input'!B13 -> Whey Powder | E25: ='Feed Input'!G66 -> 0 | F25: 0 | G25: 0 | H25: 0
B26: ='Feed Input'!B14 -> Herring Meal | E26: ='Feed Input'!G67 -> 0 | F26: 0 | G26: 0 | H26: 0
B27: ='Feed Input'!B15 -> Plasma | E27: ='Feed Input'!G68 -> 0 | F27: 0 | G27: 0 | H27: 0
B28: ='Feed Input'!B16 -> Limestone | E28: ='Feed Input'!G69 -> 2.6496 | F28: 30.8969856 | G28: 2.5747488 | H28: 5.84130816
B29: ='Feed Input'!B17 -> Dical (16% Ca-21% P) | E29: ='Feed Input'!G70 -> 0.6075 | F29: 7.0840575 | G29: 0.590338125 | H29: 1.3392945
B30: ='Feed Input'!B18 -> Salt - 96% | E30: ='Feed Input'!G71 -> 0.94605 | F30: 11.03188905 | G30: 0.9193240875 | H30: 2.08566183
B31: ='Feed Input'!B19 -> Phytase | E31: ='Feed Input'!G72 -> 0.13515 | F31: 1.57598415 | G31: 0.1313320125 | H31: 0.29795169
B32: ='Feed Input'!B20 -> L-Lysine HCL | E32: ='Feed Input'!G73 -> 0.1968 | F32: 2.2948848 | G32: 0.1912404 | H32: 0.43386528
B33: ='Feed Input'!B21 -> L-Threonine | E33: ='Feed Input'!G74 -> 0 | F33: 0 | G33: 0 | H33: 0
B34: ='Feed Input'!B22 -> DL-Methionine | E34: ='Feed Input'!G75 -> 0 | F34: 0 | G34: 0 | H34: 0
B35: ='Feed Input'!B23 -> Oats - Steam Rolled | E35: ='Feed Input'!G76 -> 0 | F35: 0 | G35: 0 | H35: 0
B36: Total | E36: =SUM(E17:E35) -> 270.3 | F36: =SUM(F17:F35) -> 3151.9683 | G36: =SUM(G17:G35) -> 262.664025 | H36: =SUM(H17:H35) -> 595.90338
